Workbook

Sheet Principal
H2: =IF('Matriz Aislada'!H183=1,"Favor de seleccionar una tarifa eléctrica",IF('Matriz Aislada'!H183=2,"La ciudad seleccionada no se encuentra en la tarifa "&'Matriz Aislada'!F167,"")) -> 
B3: Tarifa: | C3: Fachada Principal al: | E3: Ciudad: | H3: Estado: | J3: Valor K Requerido: | N3: Sistema Constructivo:
B4: 1C | C4: Este | D4: ="_"&B4 -> _1C | E4: Cabo San Lucas | H4: =IF(E4="","",VLOOKUP(E4,Datos,2,0)) -> Baja California Sur | J4: =IF(OR(B4="",E4="",C4="",'Matriz Aislada'!G183=0),"",VLOOKUP(E4,'Matriz Aislada'!$A$132:$D$163,4,0)) -> 0.714 | N4: Muro: | O4: =IF(E4="","","Block (15 cms)") -> Block (15 cms) | P4: Cubierta: | Q4: =IF(E4="","","Vigueta y Bovedilla") -> Vigueta y Bovedilla
B5: =VLOOKUP(E4,Ciudad,2,0)+VLOOKUP(C4,Orientacion,2,0) -> 12
B6: Prototipo Aislada | E6: Número de viviendas: 1 | G6: Reducción de barriles de petróleo (Día Critico): | N6: =IF(OR(B4="",E4="",C4="",'Matriz Aislada'!G183=0),"",VLOOKUP($B$5,Matriz,'Matriz Aislada'!$AR$131,0)) -> 0.27
B7: Espesor de aislamiento (Poliestireno) | H7: Control Solar minimo requerido | L7: =VLOOKUP(E4,Ciudad,2,0)+1 -> 11 | N7: Fachada Principal ubicado al Norte | O7: =IF(OR($B$4="",$E$4="",$C$4="",'Matriz Aislada'!$G$183=0),"",VLOOKUP(L7,Matriz,'Matriz Aislada'!$AE$131,0)-VLOOKUP(L7,Matriz,'Matriz Aislada'!$AB$131,0)) -> 48.41
B8: Cubierta (plg) | E8: =IF(OR(B4="",E4="",C4="",'Matriz Aislada'!G183=0),"",IF(VLOOKUP($B$5,Matriz,'Matriz Aislada'!N131,0)=0,"Sin aislante",VLOOKUP($B$5,Matriz,'Matriz Aislada'!N131,0))) -> 1 | H8: =IF(OR(B4="",E4="",C4="",'Matriz Aislada'!G183=0),"",VLOOKUP($B$5,Matriz,'Matriz Aislada'!X131,0)) -> 10 cm de remetimento en todas las ventanas de F. Principal | L8: =VLOOKUP(E4,Ciudad,2,0)+2 -> 12 | N8: Fachada Principal ubicado al Este | O8: =IF(OR($B$4="",$E$4="",$C$4="",'Matriz Aislada'!$G$183=0),"",VLOOKUP(L8,Matriz,'Matriz Aislada'!$AE$131,0)-VLOOKUP(L8,Matriz,'Matriz Aislada'!$AB$131,0)) -> 66.76
B9: Muro Norte (plg) | E9: =IF(OR(B4="",E4="",C4="",'Matriz Aislada'!G183=0),"",IF(VLOOKUP($B$5,Matriz,'Matriz Aislada'!O131,0)=0,"Sin aislante",VLOOKUP($B$5,Matriz,'Matriz Aislada'!O131,0))) -> Sin aislante | L9: =VLOOKUP(E4,Ciudad,2,0)+3 -> 13 | N9: Fachada Principal ubicado al Sur | O9: =IF(OR($B$4="",$E$4="",$C$4="",'Matriz Aislada'!$G$183=0),"",VLOOKUP(L9,Matriz,'Matriz Aislada'!$AE$131,0)-VLOOKUP(L9,Matriz,'Matriz Aislada'!$AB$131,0)) -> 51.79
B10: Muro Este (plg) | E10: =IF(OR(B4="",E4="",C4="",'Matriz Aislada'!G183=0),"",IF(VLOOKUP($B$5,Matriz,'Matriz Aislada'!P131,0)=0,"Sin Aislante",VLOOKUP($B$5,Matriz,'Matriz Aislada'!P131,0))) -> 1 | L10: =VLOOKUP(E4,Ciudad,2,0)+4 -> 14 | N10: Fachada Principal ubicado al Oeste | O10: =IF(OR($B$4="",$E$4="",$C$4="",'Matriz Aislada'!$G$183=0),"",VLOOKUP(L10,Matriz,'Matriz Aislada'!$AE$131,0)-VLOOKUP(L10,Matriz,'Matriz Aislada'!$AB$131,0)) -> 62.28
B11: Muro Sur (plg) | E11: =IF(OR(B4="",E4="",C4="",'Matriz Aislada'!G183=0),"",IF(VLOOKUP($B$5,Matriz,'Matriz Aislada'!Q131,0)=0,"Sin Aislante",VLOOKUP($B$5,Matriz,'Matriz Aislada'!Q131,0))) -> Sin Aislante
B12: Muro Oeste (plg) | E12: =IF(OR(B4="",E4="",C4="",'Matriz Aislada'!G183=0),"",IF(VLOOKUP($B$5,Matriz,'Matriz Aislada'!R131,0)=0,"Sin Aislante",VLOOKUP($B$5,Matriz,'Matriz Aislada'!R131,0))) -> Sin Aislante
B14: Área con aislante (m2) | H14: Presupuesto Energético
B15: Cubierta | E15: =IF(OR(B4="",E4="",C4="",'Matriz Aislada'!G183=0),"",IF(VLOOKUP($B$5,Matriz,'Matriz Aislada'!S131,0)=0,"Sin Aislante",VLOOKUP($B$5,Matriz,'Matriz Aislada'!S131,0))) -> 39.73 | H15: Proyectado Base | J15: Proyectado Eficiente
B16: Muro Norte | E16: =IF(OR(B4="",E4="",C4="",'Matriz Aislada'!G183=0),"",IF(VLOOKUP($B$5,Matriz,'Matriz Aislada'!T131,0)=0,"Sin Aislante",VLOOKUP($B$5,Matriz,'Matriz Aislada'!T131,0))) -> Sin Aislante | H16: Conducción | J16: Conducción
B17: Muro Este | E17: =IF(OR(B4="",E4="",C4="",'Matriz Aislada'!G183=0),"",IF(VLOOKUP($B$5,Matriz,'Matriz Aislada'!U131,0)=0,"Sin Aislante",VLOOKUP($B$5,Matriz,'Matriz Aislada'!U131,0))) -> 17.2966 | H17: =IF(OR(B4="",E4="",C4="",'Matriz Aislada'!G183=0),"",VLOOKUP($B$5,Matriz,'Matriz Aislada'!AC131,0)&" Watts") -> 1629.15 Watts | J17: =IF(OR(B4="",E4="",C4="",'Matriz Aislada'!G183=0),"",VLOOKUP($B$5,Matriz,'Matriz Aislada'!L131,0)&" Watts") -> 1201.12 Watts
B18: Muro Sur | E18: =IF(OR(B4="",E4="",C4="",'Matriz Aislada'!G183=0),"",IF(VLOOKUP($B$5,Matriz,'Matriz Aislada'!V131,0)=0,"Sin Aislante",VLOOKUP($B$5,Matriz,'Matriz Aislada'!V131,0))) -> Sin Aislante | H18: Radiación | J18: Radiación
B19: Muro Oeste | E19: =IF(OR(B4="",E4="",C4="",'Matriz Aislada'!G183=0),"",IF(VLOOKUP($B$5,Matriz,'Matriz Aislada'!W131,0)=0,"Sin Aislante",VLOOKUP($B$5,Matriz,'Matriz Aislada'!W131,0))) -> Sin Aislante | H19: =IF(OR(B4="",E4="",C4="",'Matriz Aislada'!G183=0),"",VLOOKUP($B$5,Matriz,'Matriz Aislada'!AD131,0)&" Watts") -> 536.86 Watts | J19: =IF(OR(B4="",E4="",C4="",'Matriz Aislada'!G183=0),"",VLOOKUP($B$5,Matriz,'Matriz Aislada'!M131,0)&" Watts") -> 484.81 Watts
B21: Costo de Aislamiento | E21: =IF(OR(B4="",E4="",C4="",'Matriz Aislada'!G183=0),"",VLOOKUP($B$5,Matriz,'Matriz Aislada'!Y131,0)) -> 9705.04 | H21: Presupuesto Energético Total
B23: Veces salario min. Diario | E23: =IF(OR(B4="",E4="",C4="",'Matriz Aislada'!G183=0),"",VLOOKUP($B$5,Matriz,'Matriz Aislada'!Z131,0)&" VSMD") -> 139 VSMD | H23: Proyectado Base | J23: Proyectado Eficiente
B25: Veces salario min. Mensuales | E25: =IF(OR(B4="",E4="",C4="",'Matriz Aislada'!G183=0),"",VLOOKUP($B$5,Matriz,'Matriz Aislada'!AA131,0)&" VSMM") -> 5 VSMM | H25: =IF(OR(B4="",E4="",C4="",'Matriz Aislada'!G183=0),"",(VLOOKUP($B$5,Matriz,'Matriz Aislada'!AC131,0)+VLOOKUP($B$5,Matriz,'Matriz Aislada'!AD131,0))&" Watts") -> 2166.01 Watts | J25: =IF(OR(B4="",E4="",C4="",'Matriz Aislada'!G183=0),"",(VLOOKUP($B$5,Matriz,'Matriz Aislada'!L131,0)+VLOOKUP($B$5,Matriz,'Matriz Aislada'!M131,0))&" Watts") -> 1685.93 Watts
B28: Prototipo Adosada | E28: Número de viviendas: 2 | G28: Reducción de barriles de petróleo (Día Critico): | N28: =IF(OR(B4="",E4="",C4="",'Matriz Aislada'!G183=0),"",VLOOKUP($B$5,Matriz,'Matriz Aislada'!$AS$131,0)) -> 0.51
B29: Espesor de aislamiento (Poliestireno) | H29: Control Solar minimo requerido | L29: =$L$7 -> 11 | N29: =$N$7 -> Fachada Principal ubicado al Norte | O29: =IF(OR($B$4="",$E$4="",$C$4="",'Matriz Aislada'!$G$183=0),"",VLOOKUP(L29,Matriz,'Matriz Aislada'!$AK$131,0)-VLOOKUP(L29,Matriz,'Matriz Aislada'!$AH$131,0)) -> 49.27
B30: Cubierta (plg) | E30: =IF(OR(B4="",E4="",C4="",'Matriz Aislada'!G183=0),"",HLOOKUP($C$4,'Matriz Aislada'!$D$200:$I$206,'Matriz Aislada'!D201,0)) -> 1 | H30: =IF(OR(B4="",E4="",C4="",'Matriz Aislada'!G183=0),"",HLOOKUP($C$4,'Matriz Aislada'!$D$200:$I$206,'Matriz Aislada'!D206,0)) -> 18 cms de remetimiento en ventanas sin elementos sombreantes | L30: =$L$8 -> 12 | N30: =$N$8 -> Fachada Principal ubicado al Este | O30: =IF(OR($B$4="",$E$4="",$C$4="",'Matriz Aislada'!$G$183=0),"",VLOOKUP(L30,Matriz,'Matriz Aislada'!$AK$131,0)-VLOOKUP(L30,Matriz,'Matriz Aislada'!$AH$131,0)) -> 125.06
B31: Muro Norte (plg) | E31: =IF(OR(B4="",E4="",C4="",'Matriz Aislada'!G183=0),"",HLOOKUP($C$4,'Matriz Aislada'!$D$200:$I$206,'Matriz Aislada'!D202,0)) -> Sin Aislante | L31: =$L$9 -> 13 | N31: =$N$9 -> Fachada Principal ubicado al Sur | O31: =IF(OR($B$4="",$E$4="",$C$4="",'Matriz Aislada'!$G$183=0),"",VLOOKUP(L31,Matriz,'Matriz Aislada'!$AK$131,0)-VLOOKUP(L31,Matriz,'Matriz Aislada'!$AH$131,0)) -> 71.55
B32: Muro Este (plg) | E32: =IF(OR(B4="",E4="",C4="",'Matriz Aislada'!G183=0),"",HLOOKUP($C$4,'Matriz Aislada'!$D$200:$I$206,'Matriz Aislada'!D203,0)) -> Sin Aislante | L32: =$L$10 -> 14 | N32: =$N$10 -> Fachada Principal ubicado al Oeste | O32: =IF(OR($B$4="",$E$4="",$C$4="",'Matriz Aislada'!$G$183=0),"",VLOOKUP(L32,Matriz,'Matriz Aislada'!$AK$131,0)-VLOOKUP(L32,Matriz,'Matriz Aislada'!$AH$131,0)) -> 134.84
B33: Muro Sur (plg) | E33: =IF(OR(B4="",E4="",C4="",'Matriz Aislada'!G183=0),"",HLOOKUP($C$4,'Matriz Aislada'!$D$200:$I$206,'Matriz Aislada'!D204,0)) -> Sin Aislante
B34: Muro Oeste (plg) | E34: =IF(OR(B4="",E4="",C4="",'Matriz Aislada'!G183=0),"",HLOOKUP($C$4,'Matriz Aislada'!$D$200:$I$206,'Matriz Aislada'!D205,0)) -> 1
B36: Área con aislante (m2) | H36: Presupuesto Energético
B37: Cubierta | E37: =IF(OR(B4="",E4="",C4="",'Matriz Aislada'!G183=0),"",HLOOKUP($C$4,'Matriz Aislada'!$D$209:$I$214,'Matriz Aislada'!D210,0)) -> 80.91 | H37: Proyectado Base | J37: Proyectado Eficiente
B38: Muro Norte | E38: =IF(OR(B4="",E4="",C4="",'Matriz Aislada'!G183=0),"",HLOOKUP($C$4,'Matriz Aislada'!$D$209:$I$214,'Matriz Aislada'!D211,0)) -> Sin Aislante | H38: Conducción | J38: Conducción
B39: Muro Este | E39: =IF(OR(B4="",E4="",C4="",'Matriz Aislada'!G183=0),"",HLOOKUP($C$4,'Matriz Aislada'!$D$209:$I$214,'Matriz Aislada'!D212,0)) -> Sin Aislante | H39: =IF(OR(B4="",E4="",C4="",'Matriz Aislada'!G183=0),"",ROUND(VLOOKUP($B$5,Matriz,'Matriz Aislada'!$AI$131,0),2)&" Watts") -> 2975.07 Watts | J39: =IF(OR(B4="",E4="",C4="",'Matriz Aislada'!G183=0),"",ROUND(VLOOKUP($B$5,Matriz,'Matriz Aislada'!$AF$131,0),2)&" Watts") -> 2190.26 Watts
B40: Muro Sur | E40: =IF(OR(B4="",E4="",C4="",'Matriz Aislada'!G183=0),"",HLOOKUP($C$4,'Matriz Aislada'!$D$209:$I$214,'Matriz Aislada'!D213,0)) -> Sin Aislante | H40: Radiación | J40: Radiación
B41: Muro Oeste | E41: =IF(OR(B4="",E4="",C4="",'Matriz Aislada'!G183=0),"",HLOOKUP($C$4,'Matriz Aislada'!$D$209:$I$214,'Matriz Aislada'!D214,0)) -> 19.876 | H41: =IF(OR(B4="",E4="",C4="",'Matriz Aislada'!G183=0),"",ROUND(VLOOKUP($B$5,Matriz,'Matriz Aislada'!$AJ$131,0),2)&" Watts") -> 1257.44 Watts | J41: =IF(OR(B4="",E4="",C4="",'Matriz Aislada'!G183=0),"",ROUND(VLOOKUP($B$5,Matriz,'Matriz Aislada'!$AG$131,0),2)&" Watts") -> 1142.96 Watts
B43: Costo de Aislamiento | E43: =IF(OR(B4="",E4="",C4="",'Matriz Aislada'!G183=0),"",IF(OR(C4="Este",C4="Oeste"),19252.18,5653.93)) -> 19252.18 | H43: Presupuesto Energético Total
B45: Veces salario min. Diario | E45: =IF(OR(B4="",E4="",C4="",'Matriz Aislada'!G183=0),"",ROUND(E43*0.0143,0)) -> 275 | H45: Proyectado Base | J45: Proyectado Eficiente
B47: Veces salario min. Mensuales | E47: =IF(OR(B4="",E4="",C4="",'Matriz Aislada'!G183=0),"",ROUND(E43*0.0005,0)) -> 10 | H47: =IF(OR(B4="",E4="",C4="",'Matriz Aislada'!G183=0),"",ROUND((VLOOKUP($B$5,Matriz,'Matriz Aislada'!$AI$131,0)+VLOOKUP($B$5,Matriz,'Matriz Aislada'!$AJ$131,0)),2)&" Watts") -> 4232.51 Watts | J47: =IF(OR(B4="",E4="",C4="",'Matriz Aislada'!G183=0),"",ROUND((VLOOKUP($B$5,Matriz,'Matriz Aislada'!$AF$131,0)+VLOOKUP($B$5,Matriz,'Matriz Aislada'!$AG$131,0)),2)&" Watts") -> 3333.22 Watts
B50: Prototipo Vertical | E50: Número de viviendas: 8 | G50: Reducción de barriles de petróleo (Día Critico): | N50: =IF(OR(B4="",E4="",C4="",'Matriz Aislada'!G183=0),"",VLOOKUP($B$5,Matriz,'Matriz Aislada'!$AT$131,0)) -> 1.64
B51: Espesor de aislamiento (Poliestireno) | H51: Control Solar minimo requerido | L51: =$L$7 -> 11 | N51: =$N$7 -> Fachada Principal ubicado al Norte | O51: =IF(OR($B$4="",$E$4="",$C$4="",'Matriz Aislada'!$G$183=0),"",VLOOKUP(L51,Matriz,'Matriz Aislada'!$AQ$131,0)-VLOOKUP(L51,Matriz,'Matriz Aislada'!$AN$131,0)) -> 197.85
B52: Cubierta (plg) | E52: =IF(OR(B4="",E4="",C4="",'Matriz Aislada'!G183=0),"",HLOOKUP($C$4,'Matriz Aislada'!$D$191:$I$197,'Matriz Aislada'!D192,0)) -> 1 | H52: =IF(OR(B4="",E4="",C4="",'Matriz Aislada'!G183=0),"",HLOOKUP($C$4,'Matriz Aislada'!$D$191:$I$197,'Matriz Aislada'!D197,0)) -> 13 cms de remetimiento en todas las ventanas | L52: =$L$8 -> 12 | N52: =$N$8 -> Fachada Principal ubicado al Este | O52: =IF(OR($B$4="",$E$4="",$C$4="",'Matriz Aislada'!$G$183=0),"",VLOOKUP(L52,Matriz,'Matriz Aislada'!$AQ$131,0)-VLOOKUP(L52,Matriz,'Matriz Aislada'!$AN$131,0)) -> 399.02
B53: Muro Norte (plg) | E53: =IF(OR(B4="",E4="",C4="",'Matriz Aislada'!G183=0),"",HLOOKUP($C$4,'Matriz Aislada'!$D$191:$I$197,'Matriz Aislada'!D193,0)) -> Sin Aislante | L53: =$L$9 -> 13 | N53: =$N$9 -> Fachada Principal ubicado al Sur | O53: =IF(OR($B$4="",$E$4="",$C$4="",'Matriz Aislada'!$G$183=0),"",VLOOKUP(L53,Matriz,'Matriz Aislada'!$AQ$131,0)-VLOOKUP(L53,Matriz,'Matriz Aislada'!$AN$131,0)) -> 205.97
B54: Muro Este (plg) | E54: =IF(OR(B4="",E4="",C4="",'Matriz Aislada'!G183=0),"",HLOOKUP($C$4,'Matriz Aislada'!$D$191:$I$197,'Matriz Aislada'!D194,0)) -> Sin Aislante | L54: =$L$10 -> 14 | N54: =$N$10 -> Fachada Principal ubicado al Oeste | O54: =IF(OR($B$4="",$E$4="",$C$4="",'Matriz Aislada'!$G$183=0),"",VLOOKUP(L54,Matriz,'Matriz Aislada'!$AQ$131,0)-VLOOKUP(L54,Matriz,'Matriz Aislada'!$AN$131,0)) -> 456.38
B55: Muro Sur (plg) | E55: =IF(OR(B4="",E4="",C4="",'Matriz Aislada'!G183=0),"",HLOOKUP($C$4,'Matriz Aislada'!$D$191:$I$197,'Matriz Aislada'!D195,0)) -> Sin Aislante
B56: Muro Oeste (plg) | E56: =IF(OR(B4="",E4="",C4="",'Matriz Aislada'!G183=0),"",HLOOKUP($C$4,'Matriz Aislada'!$D$191:$I$197,'Matriz Aislada'!D196,0)) -> 1
B58: Área con aislante (m2) | H58: Presupuesto Energético
B59: Cubierta | E59: =IF(OR(B4="",E4="",C4="",'Matriz Aislada'!G183=0),"",HLOOKUP($C$4,'Matriz Aislada'!$D$217:$I$222,'Matriz Aislada'!D218,0)) -> 87.27 | H59: Proyectado Base | J59: Proyectado Eficiente
B60: Muro Norte | E60: =IF(OR(B4="",E4="",C4="",'Matriz Aislada'!G183=0),"",HLOOKUP($C$4,'Matriz Aislada'!$D$217:$I$222,'Matriz Aislada'!D219,0)) -> Sin Aislante | H60: Conducción | J60: Conducción
B61: Muro Este | E61: =IF(OR(B4="",E4="",C4="",'Matriz Aislada'!G183=0),"",HLOOKUP($C$4,'Matriz Aislada'!$D$217:$I$222,'Matriz Aislada'!D220,0)) -> Sin Aislante | H61: =IF(OR(B4="",E4="",C4="",'Matriz Aislada'!G183=0),"",ROUND(VLOOKUP($B$5,Matriz,'Matriz Aislada'!$AO$131,0),2)&" Watts") -> 9619.56 Watts | J61: =IF(OR(B4="",E4="",C4="",'Matriz Aislada'!G183=0),"",ROUND(VLOOKUP($B$5,Matriz,'Matriz Aislada'!$AL$131,0),2)&" Watts") -> 7764.04 Watts
B62: Muro Sur | E62: =IF(OR(B4="",E4="",C4="",'Matriz Aislada'!G183=0),"",HLOOKUP($C$4,'Matriz Aislada'!$D$217:$I$222,'Matriz Aislada'!D221,0)) -> Sin Aislante | H62: Radiación | J62: Radiación
B63: Muro Oeste | E63: =IF(OR(B4="",E4="",C4="",'Matriz Aislada'!G183=0),"",HLOOKUP($C$4,'Matriz Aislada'!$D$217:$I$222,'Matriz Aislada'!D222,0)) -> 121.4152 | H63: =IF(OR(B4="",E4="",C4="",'Matriz Aislada'!G183=0),"",ROUND(VLOOKUP($B$5,Matriz,'Matriz Aislada'!$AP$131,0),2)&" Watts") -> 5208.62 Watts | J63: =IF(OR(B4="",E4="",C4="",'Matriz Aislada'!G183=0),"",ROUND(VLOOKUP($B$5,Matriz,'Matriz Aislada'!$AM$131,0),2)&" Watts") -> 4194.69 Watts
B65: Costo de Aislamiento | E65: =IF(OR(B4="",E4="",C4="",'Matriz Aislada'!G183=0),"",IF(OR(C4="Este",C4="Oeste"),40197.01,20437.76)) -> 40197.01 | H65: Presupuesto Energético Total
B67: Veces salario min. Diario | E67: =IF(OR(B4="",E4="",C4="",'Matriz Aislada'!G183=0),"",ROUND(E65*0.0143,0)) -> 575 | H67: Proyectado Base | J67: Proyectado Eficiente
B69: Veces salario min. Mensuales | E69: =IF(OR(B4="",E4="",C4="",'Matriz Aislada'!G183=0),"",ROUND(E65*0.0005,0)) -> 20 | H69: =IF(OR(B4="",E4="",C4="",'Matriz Aislada'!G183=0),"",ROUND((VLOOKUP($B$5,Matriz,'Matriz Aislada'!$AO$131,0)+VLOOKUP($B$5,Matriz,'Matriz Aislada'!$AP$131,0)),2)&" Watts") -> 14828.18 Watts | J69: =IF(OR(B4="",E4="",C4="",'Matriz Aislada'!G183=0),"",ROUND((VLOOKUP($B$5,Matriz,'Matriz Aislada'!$AL$131,0)+VLOOKUP($B$5,Matriz,'Matriz Aislada'!$AM$131,0)),2)&" Watts") -> 11958.73 Watts
B71: Factores de Conversión: | E71: 1 Tonelada de refrigeración: 3517 W, 1 Tonelada de refrigeración= 858 kWh, 1 kWh= 0.57 kgCO2, 1 Barril de petroleo= 428 kWh

Sheet Matriz Aislada (hidden)
A1: Datos Generales | H1: Sistema Constructivo | K1: No. | L1: Presupuesto energético (Edificio proyectado) | N1: Espesor de aislamiento (Poliestireno) | S1: Área con aislante en el edificio proyectado (m2) | X1: Control Solar Mínimo requerido | Y1: Importe del aislamiento | Z1: Veces Salario Minimo Diario | AA1: Veces Salario Minimo Mensuales | AB1: Gases Efecto Invernadero | AC1: Presupuesto energético (Edificio proyectado) | AE1: Gases Efecto Invernadero | AF1: Presupuesto energético (Edificio proyectado) | AH1: Gases Efecto Invernadero | AI1: Presupuesto energético (Edificio proyectado) | AK1: Gases Efecto Invernadero | AL1: Presupuesto energético (Edificio proyectado) | AN1: Gases Efecto Invernadero | AO1: Presupuesto energético (Edificio proyectado) | AQ1: Gases Efecto Invernadero | AR1: Barriles de Petroleo (Aislada) | AS1: Barriles de Petroleo (Adosada) | AT1: Barriles de Petroleo (Vertical)
A2: Ciudad | B2: Estado | C2: Tarifa | D2: Fachada principal al: | E2: Tipo de Vivenda | F2: No. Unidades | G2: Valor K requerido (W/m2K) | H2: Muros | I2: Cubierta | L2: Conducción | M2: Radiación | N2: Cubierta (plg) | O2: M. Norte (plg) | P2: M. Este (plg) | Q2: M. Sur (plg) | R2: M. Oeste (plg) | S2: Cubierta | T2: M. Norte | U2: M. Este | V2: M. Sur | W2: Muro Oeste | Y2: ($) | Z2: (VSMD) | AA2: (VSMM) | AB2: (GEI) | AC2: Conducción | AD2: Radiación | AE2: (GEI) | AF2: Conducción | AG2: Radiación | AH2: (GEI) | AI2: Conducción | AJ2: Radiación | AK2: (GEI) | AL2: Conducción | AM2: Radiación | AN2: (GEI) | AO2: Conducción | AP2: Radiación | AQ2: (GEI)
A3: Cabo San Lucas | B3: Baja California Sur | C3: 1C | D3: Norte | E3: Aislada | F3: 1 | G3: 0.714 | H3: Block 15cm | I3: Vigueta y Bovedilla | K3: =VLOOKUP(A3,$F$132:$G$163,2,0)+VLOOKUP(D3,$H$132:$I$135,2,0) -> 11 | L3: 1365.48 | M3: 380.55 | N3: 1.5 | O3: 0 | P3: 0 | Q3: 0 | R3: 0 | S3: 39.73 | T3: 0 | U3: 0 | V3: 0 | W3: 0 | X3: 10 cm de remetimento en todas las ventanas de F. Principal | Y3: 8430.31 | Z3: =ROUND(Y3*0.0143,0) -> 121 | AA3: =ROUND(Y3*0.0005,0) -> 4 | AB3: =ROUND(((SUM(L3:M3)/3517)*858)*0.57,2) -> 242.8 | AC3: 1682.6 | AD3: 411.61 | AE3: =ROUND(((SUM(AC3:AD3)/3517)*858)*0.57,2) -> 291.21 | AF3: 2747.04348 | AG3: 681.13 | AH3: =ROUND(((SUM(AF3:AG3)/3517)*858)*0.57,2) -> 476.71 | AI3: 3040.634816 | AJ3: 741.86 | AK3: =ROUND(((SUM(AI3:AJ3)/3517)*858)*0.57,2) -> 525.98 | AL3: 8582.864648 | AM3: 2410.18 | AN3: =ROUND(((SUM(AL3:AM3)/3517)*858)*0.57,2) -> 1528.65 | AO3: 9370.000056 | AP3: 3045.87 | AQ3: =ROUND(((SUM(AO3:AP3)/3517)*858)*0.57,2) -> 1726.5 | AR3: =ROUND((((SUM(AC3:AD3)-SUM(L3:M3))/3517)*858)/428,2) -> 0.2 | AS3: =ROUND((((SUM(AI3:AJ3)-SUM(AF3:AG3))/3517)*858)/428,2) -> 0.2 | AT3: =ROUND((((SUM(AO3:AP3)-SUM(AL3:AM3))/3517)*858)/428,2) -> 0.81
D4: Este | K4: =VLOOKUP(A3,$F$132:$G$163,2,0)+VLOOKUP(D4,$H$132:$I$135,2,0) -> 12 | L4: 1201.12 | M4: 484.81 | N4: 1 | O4: 0 | P4: 1 | Q4: 0 | R4: 0 | S4: 39.73 | T4: 0 | U4: 17.2966 | V4: 0 | W4: 0 | X4: 10 cm de remetimento en todas las ventanas de F. Principal | Y4: 9705.04 | Z4: 139 | AA4: 5 | AB4: 234.44 | AC4: 1629.15 | AD4: 536.86 | AE4: 301.2 | AF4: 2190.26452 | AG4: 1142.96 | AH4: =ROUND(((SUM(AF4:AG4)/3517)*858)*0.57,2) -> 463.5 | AI4: 2975.07132 | AJ4: 1257.44 | AK4: =ROUND(((SUM(AI4:AJ4)/3517)*858)*0.57,2) -> 588.56 | AL4: 7764.0404 | AM4: 4194.69 | AN4: =ROUND(((SUM(AL4:AM4)/3517)*858)*0.57,2) -> 1662.93 | AO4: 9619.556536 | AP4: 5208.62 | AQ4: =ROUND(((SUM(AO4:AP4)/3517)*858)*0.57,2) -> 2061.95 | AR4: =ROUND((((SUM(AC4:AD4)-SUM(L4:M4))/3517)*858)/428,2) -> 0.27 | AS4: =ROUND((((SUM(AI4:AJ4)-SUM(AF4:AG4))/3517)*858)/428,2) -> 0.51 | AT4: =ROUND((((SUM(AO4:AP4)-SUM(AL4:AM4))/3517)*858)/428,2) -> 1.64
D5: Sur | K5: =VLOOKUP(A3,$F$132:$G$163,2,0)+VLOOKUP(D5,$H$132:$I$135,2,0) -> 13 | L5: 1360.02 | M5: 503.53 | N5: 1.5 | O5: 0 | P5: 0 | Q5: 0 | R5: 0 | S5: 39.73 | T5: 0 | U5: 0 | V5: 0 | W5: 0 | X5: 10 cm de remetimento en todas las ventanas de F. Principal | Y5: 8430.31 | Z5: 121 | AA5: 4 | AB5: 259.14 | AC5: 1677.14 | AD5: 558.9 | AE5: 310.93 | AF5: 2656.985664 | AG5: 826.69 | AH5: =ROUND(((SUM(AF5:AG5)/3517)*858)*0.57,2) -> 484.43 | AI5: 3048.433456 | AJ5: 949.78 | AK5: =ROUND(((SUM(AI5:AJ5)/3517)*858)*0.57,2) -> 555.98 | AL5: 8604.3164 | AM5: 2763.65 | AN5: =ROUND(((SUM(AL5:AM5)/3517)*858)*0.57,2) -> 1580.78 | AO5: 9391.462792 | AP5: 3457.69 | AQ5: =ROUND(((SUM(AO5:AP5)/3517)*858)*0.57,2) -> 1786.75 | AR5: 0.21 | AS5: 0.29 | AT5: 0.84
D6: Oeste | K6: =VLOOKUP(A3,$F$132:$G$163,2,0)+VLOOKUP(D6,$H$132:$I$135,2,0) -> 14 | L6: 1248.44 | M6: 571.13 | N6: 1 | O6: 0 | P6: 0 | Q6: 0 | R6: 1 | S6: 39.73 | T6: 0 | U6: 0 | V6: 0 | W6: 18.5635 | X6: 10 cm de remetimento en todas las ventanas de F. Principal | Y6: 9705.04 | Z6: 139 | AA6: 5 | AB6: 253.02 | AC6: 1642.61 | AD6: 624.82 | AE6: 315.3 | AF6: 2136.486856 | AG6: 1155.82 | AH6: =ROUND(((SUM(AF6:AG6)/3517)*858)*0.57,2) -> 457.82 | AI6: 2988.153264 | AJ6: 1273.9 | AK6: =ROUND(((SUM(AI6:AJ6)/3517)*858)*0.57,2) -> 592.66 | AL6: 7391.561976 | AM6: 4224.31 | AN6: =ROUND(((SUM(AL6:AM6)/3517)*858)*0.57,2) -> 1615.26 | AO6: 9655.54012 | AP6: 5242.37 | AQ6: =ROUND(((SUM(AO6:AP6)/3517)*858)*0.57,2) -> 2071.64 | AR6: 0.26 | AS6: 0.55 | AT6: 1.87
A7: Campeche | B7: Campeche | C7: 1C | D7: Norte | E7: Aislada | F7: 1 | G7: 0.714 | H7: Block 15cm | I7: Vigueta y Bovedilla | K7: =VLOOKUP(A7,$F$132:$G$163,2,0)+VLOOKUP(D7,$H$132:$I$135,2,0) -> 21 | L7: 2348.94 | M7: 1250.55 | N7: 1.5 | O7: 0 | P7: 1 | Q7: 0 | R7: 1 | S7: 53.16 | T7: 0 | U7: 37.15 | V7: 0 | W7: 38.44 | X7: 5 cm de Remetimiento en la ventana Oeste | Y7: 25971.69 | Z7: =ROUND(Y7*0.0143,0) -> 371 | AA7: =ROUND(Y7*0.0005,0) -> 13 | AB7: =ROUND(((SUM(L7:M7)/3517)*858)*0.57,2) -> 500.53 | AC7: 4011.11 | AD7: 1262.48 | AE7: =ROUND(((SUM(AC7:AD7)/3517)*858)*0.57,2) -> 733.32 | AF7: 3148.445955 | AG7: 653.8848 | AH7: =ROUND(((SUM(AF7:AG7)/3517)*858)*0.57,2) -> 528.74 | AI7: 3484.937336 | AJ7: 712.1856 | AK7: =ROUND(((SUM(AI7:AJ7)/3517)*858)*0.57,2) -> 583.64 | AL7: 9837.006833 | AM7: 2313.7728 | AN7: =ROUND(((SUM(AL7:AM7)/3517)*858)*0.57,2) -> 1689.64 | AO7: 10739.15975 | AP7: 2924.0352 | AQ7: =ROUND(((SUM(AO7:AP7)/3517)*858)*0.57,2) -> 1899.95 | AR7: 0.95 | AS7: 0.23 | AT7: 0.86
D8: Este | K8: =VLOOKUP(A7,$F$132:$G$163,2,0)+VLOOKUP(D8,$H$132:$I$135,2,0) -> 22 | L8: 1885.25 | M8: 1562.12 | N8: 1 | O8: 1 | P8: 1 | Q8: 1 | R8: 1 | S8: 53.16 | T8: 38.44 | U8: 23.39 | V8: 37.15 | W8: 24.158 | X8: No Aplica | Y8: 34044.13 | Z8: =ROUND(Y8*0.0143,0) -> 487 | AA8: =ROUND(Y8*0.0005,0) -> 17 | AB8: =ROUND(((SUM(L8:M8)/3517)*858)*0.57,2) -> 479.38 | AC8: 3904.81 | AD8: 1562.12 | AE8: 760.21 | AF8: 2510.309545 | AG8: 1097.2416 | AH8: 501.65 | AI8: 3409.793595 | AJ8: 1207.1424 | AK8: 642.01 | AL8: 8898.53465 | AM8: 4026.9024 | AN8: 1797.36 | AO8: 11025.18183 | AP8: 5000.2752 | AQ8: 2228.44 | AR8: 1.15 | AS8: 0.58 | AT8: 1.77
D9: Sur | K9: =VLOOKUP(A7,$F$132:$G$163,2,0)+VLOOKUP(D9,$H$132:$I$135,2,0) -> 23 | L9: 2322.84 | M9: 1249.12 | N9: 1.5 | O9: 0 | P9: 1 | Q9: 0 | R9: 1 | S9: 53.16 | T9: 0 | U9: 37.15 | V9: 0 | W9: 38.44 | X9: 5 cm de Remetimiento en la ventana Este | Y9: 25971.69 | Z9: 371 | AA9: 13 | AB9: 496.7 | AC9: 3980.88 | AD9: 1262.75 | AE9: 729.16 | AF9: 3045.228744 | AG9: 793.6224 | AH9: 533.82 | AI9: 3493.875526 | AJ9: 911.7888 | AK9: 612.63 | AL9: 9861.59315 | AM9: 2653.104 | AN9: 1740.24 | AO9: 10763.75866 | AP9: 3319.3824 | AQ9: 1958.35 | AR9: 0.95 | AS9: 0.32 | AT9: 0.89
D10: Oeste | K10: =VLOOKUP(A7,$F$132:$G$163,2,0)+VLOOKUP(D10,$H$132:$I$135,2,0) -> 24 | L10: 1883.39 | M10: 1613.27 | N10: 1 | O10: 1 | P10: 1 | Q10: 1 | R10: 1 | S10: 53.16 | T10: 38.44 | U10: 23.39 | V10: 37.15 | W10: 24.158 | X10: No Aplica | Y10: 34044.13 | Z10: 487 | AA10: 17 | AB10: 486.23 | AC10: 3895.94 | AD10: 1613.27 | AE10: 766.09 | AF10: 2448.673801 | AG10: 1109.5872 | AH10: 494.8 | AI10: 3424.787094 | AJ10: 1222.944 | AK10: 646.29 | AL10: 8471.629071 | AM10: 4055.3376 | AN10: 1741.95 | AO10: 11066.42339 | AP10: 5032.6752 | AQ10: 2238.68 | AR10: 1.15 | AS10: 0.62 | AT10: 2.04
A11: Ciudad del Carmen | B11: Campeche | C11: 1C | D11: Norte | E11: Aislada | F11: 1 | G11: 0.714 | H11: Block 15cm | I11: Vigueta y Bovedilla | K11: =VLOOKUP(A11,$F$132:$G$163,2,0)+VLOOKUP(D11,$H$132:$I$135,2,0) -> 31 | L11: 2451.01 | M11: 1221.11 | N11: 1.5 | O11: 0 | P11: 1 | Q11: 0 | R11: 1 | S11: 53.16 | T11: 0 | U11: 37.15 | V11: 0 | W11: 38.44 | X11: 22 cm de Remetimiento en la ventana Oeste | Y11: 25971.69 | Z11: 371 | AA11: 13 | AB11: 510.63 | AC11: 4139.6 | AD11: 1286.99 | AE11: 754.6 | AF11: 3225.72531 | AG11: 653.8848 | AH11: 539.48 | AI11: 3570.475952 | AJ11: 712.1856 | AK11: 595.53 | AL11: 10078.45851 | AM11: 2313.7728 | AN11: 1723.21 | AO11: 11002.75498 | AP11: 2924.0352 | AQ11: 1936.6 | AR11: 1 | AS11: 0.23 | AT11: 0.87
D12: Este | K12: =VLOOKUP(A11,$F$132:$G$163,2,0)+VLOOKUP(D12,$H$132:$I$135,2,0) -> 32 | L12: 1949.39 | M12: 1561.11 | N12: 1 | O12: 1 | P12: 1 | Q12: 1 | R12: 1 | S12: 53.16 | T12: 38.44 | U12: 23.39 | V12: 37.15 | W12: 24.158 | X12: No Aplica | Y12: 34044.13 | Z12: 487 | AA12: 17 | AB12: 488.16 | AC12: 4051.54 | AD12: 1561.11 | AE12: 780.47 | AF12: 2571.92569 | AG12: 1097.2416 | AH12: 510.22 | AI12: 3493.48779 | AJ12: 1207.1424 | AK12: 653.65 | AL12: 9116.9513 | AM12: 4026.9024 | AN12: 1827.73 | AO12: 11295.79754 | AP12: 5000.2752 | AQ12: 2266.07 | AR12: 1.2 | AS12: 0.59 | AT12: 1.8
D13: Sur | K13: =VLOOKUP(A11,$F$132:$G$163,2,0)+VLOOKUP(D13,$H$132:$I$135,2,0) -> 33 | L13: 2439.32 | M13: 1195.2 | N13: 1.5 | O13: 0 | P13: 1 | Q13: 0 | R13: 1 | S13: 53.16 | T13: 0 | U13: 37.15 | V13: 0 | W13: 38.44 | X13: 22 cm de Remetimiento en la ventana Este | Y13: 25971.69 | Z13: 371 | AA13: 13 | AB13: 505.4 | AC13: 4123.66 | AD13: 1270.48 | AE13: 750.09 | AF13: 3119.974608 | AG13: 793.6224 | AH13: 544.21 | AI13: 3579.633532 | AJ13: 911.7888 | AK13: 624.56 | AL13: 10103.6483 | AM13: 2653.104 | AN13: 1773.9 | AO13: 11027.95767 | AP13: 3319.3824 | AQ13: 1995.08 | AR13: 1 | AS13: 0.33 | AT13: 0.91
D14: Oeste | K14: =VLOOKUP(A11,$F$132:$G$163,2,0)+VLOOKUP(D14,$H$132:$I$135,2,0) -> 34 | L14: 1947.17 | M14: 1597.74 | N14: 1 | O14: 1 | P14: 1 | Q14: 1 | R14: 1 | S14: 53.16 | T14: 38.44 | U14: 23.39 | V14: 37.15 | W14: 24.158 | X14: No Aplica | Y14: 34044.13 | Z14: 487 | AA14: 17 | AB14: 492.94 | AC14: 4044.51 | AD14: 1597.74 | AE14: 784.59 | AF14: 2508.777082 | AG14: 1109.5872 | AH14: 503.16 | AI14: 3508.849308 | AJ14: 1222.944 | AK14: 657.98 | AL14: 8679.567222 | AM14: 4055.3376 | AN14: 1770.87 | AO14: 11338.05139 | AP14: 5032.6752 | AQ14: 2276.45 | AR14: 1.2 | AS14: 0.63 | AT14: 2.07
A15: Arriaga | B15: Chiapas | C15: 1C | D15: Norte | E15: Aislada | F15: 1 | G15: 0.714 | H15: Block 15cm | I15: Vigueta y Bovedilla | K15: =VLOOKUP(A15,$F$132:$G$163,2,0)+VLOOKUP(D15,$H$132:$I$135,2,0) -> 41 | L15: 1441.01 | M15: 457.78 | N15: 0 | O15: 0 | P15: 1 | Q15: 0 | R15: 1 | S15: 0 | T15: 0 | U15: 17.2966 | V15: 0 | W15: 18.5635 | X15: No Aplica | Y15: 6969.77 | Z15: 100 | AA15: =ROUND(Y15*0.0005,0) -> 3 | AB15: =ROUND(((SUM(L15:M15)/3517)*858)*0.57,2) -> 264.04 | AC15: 1937.19 | AD15: 457.78 | AE15: 333.03 | AF15: 3158.949945 | AG15: 640.2622 | AH15: =ROUND(((SUM(AF15:AG15)/3517)*858)*0.57,2) -> 528.3 | AI15: 3496.563944 | AJ15: 697.3484 | AK15: =ROUND(((SUM(AI15:AJ15)/3517)*858)*0.57,2) -> 583.19 | AL15: 9869.825507 | AM15: 2265.5692 | AN15: =ROUND(((SUM(AL15:AM15)/3517)*858)*0.57,2) -> 1687.5 | AO15: 10774.98823 | AP15: 2863.1178 | AQ15: =ROUND(((SUM(AO15:AP15)/3517)*858)*0.57,2) -> 1896.46 | AR15: 0.28 | AS15: 0.22 | AT15: 0.86
D16: Este | K16: =VLOOKUP(A15,$F$132:$G$163,2,0)+VLOOKUP(D16,$H$132:$I$135,2,0) -> 42 | L16: 1426.38 | M16: 441.58 | N16: 1 | O16: 0 | P16: 1 | Q16: 0 | R16: 0 | S16: 39.73 | T16: 0 | U16: 17.2966 | V16: 0 | W16: 0 | X16: 16 cm de remetimento en todas las ventanas de F. Principal | Y16: 9705.04 | Z16: 139 | AA16: 5 | AB16: 259.75 | AC16: 1900.35 | AD16: 518.3 | AE16: 336.33 | AF16: 2518.684555 | AG16: 1074.3824 | AH16: =ROUND(((SUM(AF16:AG16)/3517)*858)*0.57,2) -> 499.64 | AI16: 3421.169505 | AJ16: 1181.9936 | AK16: =ROUND(((SUM(AI16:AJ16)/3517)*858)*0.57,2) -> 640.1 | AL16: 8928.22235 | AM16: 3943.0086 | AN16: =ROUND(((SUM(AL16:AM16)/3517)*858)*0.57,2) -> 1789.82 | AO16: 11061.96455 | AP16: 4896.1028 | AQ16: =ROUND(((SUM(AO16:AP16)/3517)*858)*0.57,2) -> 2219.07 | AR16: 0.31 | AS16: 0.58 | AT16: 1.76
D17: Sur | K17: =VLOOKUP(A15,$F$132:$G$163,2,0)+VLOOKUP(D17,$H$132:$I$135,2,0) -> 43 | L17: 1445.86 | M17: 494.9 | N17: 0 | O17: 0 | P17: 1 | Q17: 0 | R17: 1 | S17: 0 | T17: 0 | U17: 17.2966 | V17: 0 | W17: 18.5635 | X17: No Aplica | Y17: 6969.77 | Z17: 100 | AA17: 3 | AB17: 269.87 | AC17: 1938.17 | AD17: 494.9 | AE17: 338.33 | AF17: 3055.388376 | AG17: 777.0886 | AH17: =ROUND(((SUM(AF17:AG17)/3517)*858)*0.57,2) -> 532.93 | AI17: 3505.531954 | AJ17: 892.7932 | AK17: =ROUND(((SUM(AI17:AJ17)/3517)*858)*0.57,2) -> 611.61 | AL17: 9894.49385 | AM17: 2597.831 | AN17: =ROUND(((SUM(AL17:AM17)/3517)*858)*0.57,2) -> 1737.13 | AO17: 10799.6692 | AP17: 3250.2286 | AQ17: =ROUND(((SUM(AO17:AP17)/3517)*858)*0.57,2) -> 1953.72 | AR17: 0.28 | AS17: 0.32 | AT17: 0.89
D18: Oeste | K18: =VLOOKUP(A15,$F$132:$G$163,2,0)+VLOOKUP(D18,$H$132:$I$135,2,0) -> 44 | L18: 1476.66 | M18: 447.17 | N18: 1 | O18: 0 | P18: 0 | Q18: 0 | R18: 1 | S18: 39.73 | T18: 0 | U18: 0 | V18: 0 | W18: 18.5635 | X18: 16 cm de remetimento en todas las ventanas de F. Principal | Y18: 9705.04 | Z18: 139 | AA18: 5 | AB18: 267.52 | AC18: 1916.78 | AD18: 520.6 | AE18: 338.93 | AF18: 2456.843179 | AG18: 1086.4708 | AH18: =ROUND(((SUM(AF18:AG18)/3517)*858)*0.57,2) -> 492.72 | AI18: 3436.213026 | AJ18: 1197.466 | AK18: =ROUND(((SUM(AI18:AJ18)/3517)*858)*0.57,2) -> 644.34 | AL18: 8499.892509 | AM18: 3970.8514 | AN18: =ROUND(((SUM(AL18:AM18)/3517)*858)*0.57,2) -> 1734.13 | AO18: 11103.3437 | AP18: 4927.8278 | AQ18: =ROUND(((SUM(AO18:AP18)/3517)*858)*0.57,2) -> 2229.23 | AR18: 0.29 | AS18: 0.62 | AT18: 2.03
A19: Ciudad Juarez | B19: Chihuahua | C19: 1C | D19: Norte | E19: Aislada | F19: 1 | G19: 0.833 | H19: Block 15cm | I19: Vigueta y Bovedilla | K19: =VLOOKUP(A19,$F$132:$G$163,2,0)+VLOOKUP(D19,$H$132:$I$135,2,0) -> 51 | L19: 1131.14 | M19: 361.91 | N19: 0 | O19: 0 | P19: 0 | Q19: 0 | R19: 0 | S19: 0 | T19: 0 | U19: 0 | V19: 0 | W19: 0 | X19: No Aplica | Y19: 0 | Z19: =ROUND(Y19*0.0143,0) -> 0 | AA19: =ROUND(Y19*0.0005,0) -> 0 | AB19: =ROUND(((SUM(L19:M19)/3517)*858)*0.57,2) -> 207.62 | AC19: 1131.14 | AD19: 361.91 | AE19: 207.62 | AF19: 1975.000215 | AG19: 681.13 | AH19: 369.35 | AI19: 2186.079128 | AJ19: 741.86 | AK19: 407.15 | AL19: 6170.692109 | AM19: 2410.18 | AN19: =ROUND(((SUM(AL19:AM19)/3517)*858)*0.57,2) -> 1193.22 | AO19: 6736.606923 | AP19: 3045.87 | AQ19: =ROUND(((SUM(AO19:AP19)/3517)*858)*0.57,2) -> 1360.31 | AR19: 0 | AS19: 0.15 | AT19: 0.68
D20: Este | K20: =VLOOKUP(A19,$F$132:$G$163,2,0)+VLOOKUP(D20,$H$132:$I$135,2,0) -> 52 | L20: 1095.62 | M20: 538.79 | N20: 0 | O20: 0 | P20: 0 | Q20: 0 | R20: 0 | S20: 0 | T20: 0 | U20: 0 | V20: 0 | W20: 0 | X20: 16 cm de Remetimiento en todas las ventanas que no tienen partesol. | Y20: 0 | Z20: 0 | AA20: 0 | AB20: 227.27 | AC20: 1095.62 | AD20: 538.79 | AE20: 227.27 | AF20: 1574.701285 | AG20: 1142.96 | AH20: 377.91 | AI20: 2138.941935 | AJ20: 1257.44 | AK20: 472.29 | AL20: 5581.99445 | AM20: 4194.69 | AN20: 1359.51 | AO20: 6916.026763 | AP20: 5208.62 | AQ20: 1686.01 | AR20: 0 | AS20: 0.39 | AT20: 1.34
D21: Sur | K21: =VLOOKUP(A19,$F$132:$G$163,2,0)+VLOOKUP(D21,$H$132:$I$135,2,0) -> 53 | L21: 1136.75 | M21: 389.56 | N21: 0 | O21: 0 | P21: 0 | Q21: 0 | R21: 0 | S21: 0 | T21: 0 | U21: 0 | V21: 0 | W21: 0 | X21: No Aplica | Y21: 0 | Z21: 0 | AA21: 0 | AB21: 212.24 | AC21: 1136.75 | AD21: 389.56 | AE21: 212.24 | AF21: 1910.252712 | AG21: 826.69 | AH21: 380.59 | AI21: 2191.685998 | AJ21: 949.78 | AK21: 436.84 | AL21: 6186.11495 | AM21: 2763.65 | AN21: 1244.52 | AO21: 6752.037661 | AP21: 3457.69 | AQ21: 1419.72 | AR21: 0 | AS21: 0.23 | AT21: 0.72
D22: Oeste | K22: =VLOOKUP(A19,$F$132:$G$163,2,0)+VLOOKUP(D22,$H$132:$I$135,2,0) -> 54 | L22: 1104.72 | M22: 541.86 | N22: 0 | O22: 0 | P22: 0 | Q22: 0 | R22: 0 | S22: 0 | T22: 0 | U22: 0 | V22: 0 | W22: 0 | X22: 16 cm de Remetimiento en todas las ventanas que no tienen partesol. | Y22: 0 | Z22: 0 | AA22: 0 | AB22: 228.97 | AC22: 1104.72 | AD22: 541.86 | AE22: 228.97 | AF22: 1536.037573 | AG22: 1155.82 | AH22: 374.32 | AI22: 2148.347262 | AJ22: 1273.9 | AK22: 475.88 | AL22: 5314.199283 | AM22: 4224.31 | AN22: 1326.39 | AO22: 6941.897335 | AP22: 5242.37 | AQ22: 1694.3 | AR22: 0 | AS22: 0.42 | AT22: 1.51
A23: Torreon | B23: Coahuila | C23: 1C | D23: Norte | E23: Aislada | F23: 1 | G23: 0.714 | H23: Block 15cm | I23: Vigueta y Bovedilla | K23: =VLOOKUP(A23,$F$132:$G$163,2,0)+VLOOKUP(D23,$H$132:$I$135,2,0) -> 61 | L23: 1372.64 | M23: 363.85 | N23: 0 | O23: 0 | P23: 0 | Q23: 0 | R23: 1 | S23: 0 | T23: 0 | U23: 0 | V23: 0 | W23: 18.5635 | X23: 12 cm de remetimento en todas las ventanas de F. Principal | Y23: 3361.77 | Z23: =ROUND(Y23*0.0143,0) -> 48 | AA23: =ROUND(Y23*0.0005,0) -> 2 | AB23: =ROUND(((SUM(L23:M23)/3517)*858)*0.57,2) -> 241.47 | AC23: 1531.56 | AD23: 401.22 | AE23: 268.76 | AF23: 2500.95 | AG23: 681.13 | AH23: =ROUND(((SUM(AF23:AG23)/3517)*858)*0.57,2) -> 442.49 | AI23: 2768.24 | AJ23: 741.86 | AK23: =ROUND(((SUM(AI23:AJ23)/3517)*858)*0.57,2) -> 488.1 | AL23: 7813.97 | AM23: 2410.18 | AN23: =ROUND(((SUM(AL23:AM23)/3517)*858)*0.57,2) -> 1421.73 | AO23: 8530.59 | AP23: 3045.87 | AQ23: =ROUND(((SUM(AO23:AP23)/3517)*858)*0.57,2) -> 1609.78 | AR23: 0.11 | AS23: 0.19 | AT23: 0.77
D24: Este | K24: =VLOOKUP(A23,$F$132:$G$163,2,0)+VLOOKUP(D24,$H$132:$I$135,2,0) -> 62 | L24: 1233.37 | M24: 441.12 | N24: 0 | O24: 0 | P24: 1 | Q24: 0 | R24: 1 | S24: 0 | T24: 0 | U24: 17.2966 | V24: 0 | W24: 18.5635 | X24: 17cm de remetimento en todas las ventanas de F. Principal | Y24: 4812.22 | Z24: 69 | AA24: 2 | AB24: 232.85 | AC24: 1494.73 | AD24: 535.09 | AE24: 282.26 | AF24: 1994.05 | AG24: 1142.96 | AH24: 436.22 | AI24: 2708.55 | AJ24: 1257.44 | AK24: 551.49 | AL24: 7068.5 | AM24: 4194.69 | AN24: 1566.21 | AO24: 8757.79 | AP24: 5208.62 | AQ24: 1942.11 | AR24: 0.2 | AS24: 0.47 | AT24: 1.54
D25: Sur | K25: =VLOOKUP(A23,$F$132:$G$163,2,0)+VLOOKUP(D25,$H$132:$I$135,2,0) -> 63 | L25: 1320.64 | M25: 480.71 | N25: 0 | O25: 0 | P25: 1 | Q25: 0 | R25: 0 | S25: 0 | T25: 0 | U25: 17.2966 | V25: 0 | W25: 0 | X25: 12 cm de remetimento en todas las ventanas de F. Principal | Y25: 3361.77 | Z25: 48 | AA25: 2 | AB25: 250.49 | AC25: 1532.54 | AD25: 550.63 | AE25: 289.68 | AF25: 2418.96 | AG25: 826.69 | AH25: 451.33 | AI25: 2775.34 | AJ25: 949.78 | AK25: 518 | AL25: 7833.5 | AM25: 2763.65 | AN25: 1473.6 | AO25: 8550.13 | AP25: 3457.69 | AQ25: 1669.76 | AR25: 0.16 | AS25: 0.27 | AT25: 0.8
D26: Oeste | K26: =VLOOKUP(A23,$F$132:$G$163,2,0)+VLOOKUP(D26,$H$132:$I$135,2,0) -> 64 | L26: 1241.68 | M26: 517.22 | N26: 0 | O26: 0 | P26: 1 | Q26: 0 | R26: 1 | S26: 0 | T26: 0 | U26: 17.2966 | V26: 0 | W26: 18.5635 | X26: 17cm de remetimento en todas las ventanas de F. Principal | Y26: 4812.22 | Z26: 69 | AA26: 2 | AB26: 244.59 | AC26: 1511.15 | AD26: 614.15 | AE26: 295.54 | AF26: 1945.09 | AG26: 1155.82 | AH26: 431.2 | AI26: 2720.46 | AJ26: 1273.9 | AK26: 555.44 | AL26: 6729.39 | AM26: 4224.31 | AN26: 1523.18 | AO26: 8790.55 | AP26: 5242.37 | AQ26: 1951.36 | AR26: 0.21 | AS26: 0.51 | AT26: 1.76
A27: Lerdo | B27: Durango | C27: 1C | D27: Norte | E27: Aislada | F27: 1 | G27: 0.714 | H27: Block 15cm | I27: Vigueta y Bovedilla | K27: =VLOOKUP(A27,$F$132:$G$163,2,0)+VLOOKUP(D27,$H$132:$I$135,2,0) -> 71 | L27: 1331.53 | M27: 370.65 | N27: 0 | O27: 0 | P27: 0 | Q27: 0 | R27: 1 | S27: 0 | T27: 0 | U27: 0 | V27: 0 | W27: 18.5635 | X27: 10cm de remetimento en todas las ventanas de F. Principal | Y27: 3361.77 | Z27: 48 | AA27: 2 | AB27: 236.7 | AC27: 1490.46 | AD27: 401.22 | AE27: 263.05 | AF27: 1639.62282 | AG27: 681.13 | AH27: 322.71 | AI27: 1814.858144 | AJ27: 741.86 | AK27: 355.53 | AL27: 5122.838732 | AM27: 2410.18 | AN27: 1047.51 | AO27: 5592.654804 | AP27: 3045.87 | AQ27: 1201.24 | AR27: 0.11 | AS27: 0.13 | AT27: 0.63
D28: Este | K28: =VLOOKUP(A27,$F$132:$G$163,2,0)+VLOOKUP(D28,$H$132:$I$135,2,0) -> 72 | L28: 1170.39 | M28: 452.25 | N28: 0 | O28: 0 | P28: 1 | Q28: 0 | R28: 1 | S28: 0 | T28: 0 | U28: 17.2966 | V28: 0 | W28: 18.5635 | X28: 15cm de remetimento en todas las ventanas de F. Principal | Y28: 4812.22 | Z28: 69 | AA28: 2 | AB28: 225.64 | AC28: 1431.74 | AD28: 535.09 | AE28: 273.5 | AF28: 1307.29918 | AG28: 1142.96 | AH28: 340.72 | AI28: 1775.72538 | AJ28: 1257.44 | AK28: 421.78 | AL28: 4634.1086 | AM28: 4194.69 | AN28: 1227.7 | AO28: 5741.607124 | AP28: 5208.62 | AQ28: 1522.69 | AR28: 0.2 | AS28: 0.33 | AT28: 1.21
D29: Sur | K29: =VLOOKUP(A27,$F$132:$G$163,2,0)+VLOOKUP(D29,$H$132:$I$135,2,0) -> 73 | L29: 1279.71 | M29: 493.62 | N29: 0 | O29: 0 | P29: 1 | Q29: 0 | R29: 0 | S29: 0 | T29: 0 | U29: 17.2966 | V29: 0 | W29: 0 | X29: 10cm de remetimento en todas las ventanas de F. Principal | Y29: 3361.77 | Z29: 48 | AA29: 2 | AB29: 246.59 | AC29: 1491.61 | AD29: 550.63 | AE29: 283.99 | AF29: 1585.870176 | AG29: 826.69 | AH29: 335.48 | AI29: 1819.512904 | AJ29: 949.78 | AK29: 385.09 | AL29: 5135.6426 | AM29: 2763.65 | AN29: 1098.44 | AO29: 5605.465228 | AP29: 3457.69 | AQ29: 1260.29 | AR29: 0.15 | AS29: 0.2 | AT29: 0.66
D30: Oeste | K30: =VLOOKUP(A27,$F$132:$G$163,2,0)+VLOOKUP(D30,$H$132:$I$135,2,0) -> 74 | L30: 1195.7 | M30: 528.7 | N30: 0 | O30: 0 | P30: 1 | Q30: 0 | R30: 1 | S30: 0 | T30: 0 | U30: 17.2966 | V30: 0 | W30: 18.5635 | X30: 15cm de remetimento en todas las ventanas de F. Principal | Y30: 4812.22 | Z30: 69 | AA30: 2 | AB30: 239.79 | AC30: 1465.18 | AD30: 614.15 | AE30: 289.14 | AF30: 1275.201004 | AG30: 1155.82 | AH30: 338.05 | AI30: 1783.533576 | AJ30: 1273.9 | AK30: 425.15 | AL30: 4411.788084 | AM30: 4224.31 | AN30: 1200.9 | AO30: 5763.08458 | AP30: 5242.37 | AQ30: 1530.37 | AR30: 0.2 | AS30: 0.36 | AT30: 1.35
A31: Monterrey | B31: Nuevo León | C31: 1C | D31: Norte | E31: Aislada | F31: 1 | G31: 0.714 | H31: Block 15cm | I31: Vigueta y Bovedilla | K31: =VLOOKUP(A31,$F$132:$G$163,2,0)+VLOOKUP(D31,$H$132:$I$135,2,0) -> 81 | L31: 1275.64 | M31: 642.99 | N31: 0 | O31: 0 | P31: 1 | Q31: 0 | R31: 1 | S31: 0 | T31: 0 | U31: 19.867 | V31: 0 | W31: 26.187 | X31: No Aplica | Y31: 8951.06 | Z31: 128 | AA31: 4 | AB31: 266.8 | AC31: 1664.79 | AD31: 642.99 | AE31: 320.91 | AF31: 2812.318275 | AG31: 647.0735 | AH31: 481.05 | AI31: 3112.88588 | AJ31: 704.767 | AK31: 530.87 | AL31: 8786.809265 | AM31: 2289.671 | AN31: =ROUND(((SUM(AL31:AM31)/3517)*858)*0.57,2) -> 1540.25 | AO31: 9592.648455 | AP31: 2893.5765 | AQ31: =ROUND(((SUM(AO31:AP31)/3517)*858)*0.57,2) -> 1736.28 | AR31: 0.22 | AS31: 0.2 | AT31: 0.8
D32: Este | K32: =VLOOKUP(A31,$F$132:$G$163,2,0)+VLOOKUP(D32,$H$132:$I$135,2,0) -> 82 | L32: 1201.34 | M32: 590.14 | N32: 2 | O32: 0 | P32: 0 | Q32: 0 | R32: 1 | S32: 40.04 | T32: 0 | U32: 0 | V32: 0 | W32: 10.407 | X32: 2 cm de Remetimiento en la ventana sin elemento sombreante (Este) | Y32: 11399.67 | Z32: 163 | AA32: 6 | AB32: 249.12 | AC32: 1547.17 | AD32: 594.68 | AE32: 297.84 | AF32: 2242.309225 | AG32: 1085.812 | AH32: 462.8 | AI32: 3045.764475 | AJ32: 1194.568 | AK32: 589.64 | AL32: 7948.52825 | AM32: 3984.9555 | AN32: 1659.42 | AO32: 9848.134855 | AP32: 4948.189 | AQ32: 2057.52 | AR32: 0.2 | AS32: 0.52 | AT32: 1.63
D33: Sur | K33: =VLOOKUP(A31,$F$132:$G$163,2,0)+VLOOKUP(D33,$H$132:$I$135,2,0) -> 83 | L33: 1278.27 | M33: 644.28 | N33: 0 | O33: 0 | P33: 1 | Q33: 0 | R33: 1 | S33: 0 | T33: 0 | U33: 19.867 | V33: 0 | W33: 26.187 | X33: No Aplica | Y33: 8951.06 | Z33: 128 | AA33: 4 | AB33: 267.34 | AC33: 1659.63 | AD33: 644.28 | AE33: 320.37 | AF33: 2720.12052 | AG33: 785.3555 | AH33: 487.46 | AI33: 3120.86983 | AJ33: 902.291 | AK33: 559.44 | AL33: 8808.77075 | AM33: 2625.4675 | AN33: 1590 | AO33: 9614.621185 | AP33: 3284.8055 | AQ33: 1793.74 | AR33: 0.22 | AS33: 0.3 | AT33: 0.84
D34: Oeste | K34: =VLOOKUP(A31,$F$132:$G$163,2,0)+VLOOKUP(D34,$H$132:$I$135,2,0) -> 84 | L34: 1228.26 | M34: 662.39 | N34: 2 | O34: 0 | P34: 0 | Q34: 0 | R34: 1 | S34: 40.04 | T34: 0 | U34: 0 | V34: 0 | W34: 10.407 | X34: 2 cm de Remetimiento en la ventana sin elemento sombreante (Oeste) | Y34: 11399.67 | Z34: 163 | AA34: 6 | AB34: 262.91 | AC34: 1560.24 | AD34: 667.22 | AE34: 309.74 | AF34: 2187.253705 | AG34: 1098.029 | AH34: 456.84 | AI34: 3059.15727 | AJ34: 1210.205 | AK34: 593.68 | AL34: 7567.199055 | AM34: 4013.0945 | AN34: 1610.31 | AO34: 9884.973475 | AP34: 4980.2515 | AQ34: 2067.1 | AR34: 0.19 | AS34: 0.56 | AT34: 1.87
A35: Salina Cruz | B35: Oaxaca | C35: 1C | D35: Norte | E35: Aislada | F35: 1 | G35: 0.714 | H35: Block 15cm | I35: Vigueta y Bovedilla | K35: =VLOOKUP(A35,$F$132:$G$163,2,0)+VLOOKUP(D35,$H$132:$I$135,2,0) -> 91 | L35: 1473.09 | M35: 435.19 | N35: 0 | O35: 0 | P35: 1 | Q35: 0 | R35: 1 | S35: 0 | T35: 0 | U35: 17.2966 | V35: 0 | W35: 18.5635 | X35: 5cm de remetimento en todas las ventanas de F. Principal | Y35: 6969.71 | Z35: =ROUND(Y35*0.0143,0) -> 100 | AA35: =ROUND(Y35*0.0005,0) -> 3 | AB35: =ROUND(((SUM(L35:M35)/3517)*858)*0.57,2) -> 265.36 | AC35: 2024.19 | AD35: 457.78 | AE35: 345.13 | AF35: 3193.963245 | AG35: 640.2622 | AH35: =ROUND(((SUM(AF35:AG35)/3517)*858)*0.57,2) -> 533.17 | AI35: 3535.319304 | AJ35: 697.3484 | AK35: =ROUND(((SUM(AI35:AJ35)/3517)*858)*0.57,2) -> 588.58 | AL35: 9979.221087 | AM35: 2265.5692 | AN35: =ROUND(((SUM(AL35:AM35)/3517)*858)*0.57,2) -> 1702.71 | AO35: 10894.41649 | AP35: 2863.1178 | AQ35: =ROUND(((SUM(AO35:AP35)/3517)*858)*0.57,2) -> 1913.07 | AR35: 0.33 | AS35: 0.23 | AT35: 0.86
D36: Este | K36: =VLOOKUP(A35,$F$132:$G$163,2,0)+VLOOKUP(D36,$H$132:$I$135,2,0) -> 92 | L36: 1425.07 | M36: 446.66 | N36: 1.5 | O36: 0 | P36: 1 | Q36: 0 | R36: 0 | S36: 39.73 | T36: 0 | U36: 17.2966 | V36: 0 | W36: 0 | X36: 15cm de remetimento en todas las ventanas de F. Principal | Y36: 10578.71 | Z36: 151 | AA36: 5 | AB36: 260.28 | AC36: 1961.78 | AD36: 518.3 | AE36: 344.87 | AF36: 2546.601255 | AG36: 1074.3824 | AH36: =ROUND(((SUM(AF36:AG36)/3517)*858)*0.57,2) -> 503.52 | AI36: 3459.089205 | AJ36: 1181.9936 | AK36: =ROUND(((SUM(AI36:AJ36)/3517)*858)*0.57,2) -> 645.37 | AL36: 9027.18135 | AM36: 3943.0086 | AN36: =ROUND(((SUM(AL36:AM36)/3517)*858)*0.57,2) -> 1803.58 | AO36: 11184.57361 | AP36: 4896.1028 | AQ36: =ROUND(((SUM(AO36:AP36)/3517)*858)*0.57,2) -> 2236.11 | AR36: 0.35 | AS36: 0.58 | AT36: 1.77
D37: Sur | K37: =VLOOKUP(A35,$F$132:$G$163,2,0)+VLOOKUP(D37,$H$132:$I$135,2,0) -> 93 | L37: 1477.94 | M37: 472.88 | N37: 0 | O37: 0 | P37: 1 | Q37: 0 | R37: 1 | S37: 0 | T37: 0 | U37: 17.2966 | V37: 0 | W37: 18.5635 | X37: 5cm de remetimento en todas las ventanas de F. Principal | Y37: 6969.71 | Z37: 100 | AA37: 3 | AB37: 271.27 | AC37: 2025.17 | AD37: 494.9 | AE37: 350.43 | AF37: 3089.253816 | AG37: 777.0886 | AH37: =ROUND(((SUM(AF37:AG37)/3517)*858)*0.57,2) -> 537.64 | AI37: 3544.386714 | AJ37: 892.7932 | AK37: =ROUND(((SUM(AI37:AJ37)/3517)*858)*0.57,2) -> 617.02 | AL37: 10004.16285 | AM37: 2597.831 | AN37: =ROUND(((SUM(AL37:AM37)/3517)*858)*0.57,2) -> 1752.38 | AO37: 10919.37102 | AP37: 3250.2286 | AQ37: =ROUND(((SUM(AO37:AP37)/3517)*858)*0.57,2) -> 1970.37 | AR37: 0.32 | AS37: 0.33 | AT37: 0.89
D38: Oeste | K38: =VLOOKUP(A35,$F$132:$G$163,2,0)+VLOOKUP(D38,$H$132:$I$135,2,0) -> 94 | L38: 1475.46 | M38: 452.03 | N38: 1.5 | O38: 0 | P38: 0 | Q38: 0 | R38: 1 | S38: 39.73 | T38: 0 | U38: 0 | V38: 0 | W38: 18.5635 | X38: 15cm de remetimento en todas las ventanas de F. Principal | Y38: 10578.71 | Z38: 151 | AA38: 5 | AB38: 268.03 | AC38: 1978.31 | AD38: 520.6 | AE38: 347.49 | AF38: 2484.074439 | AG38: 1086.4708 | AH38: =ROUND(((SUM(AF38:AG38)/3517)*858)*0.57,2) -> 496.51 | AI38: 3474.299466 | AJ38: 1197.466 | AK38: =ROUND(((SUM(AI38:AJ38)/3517)*858)*0.57,2) -> 649.64 | AL38: 8594.103969 | AM38: 3970.8514 | AN38: =ROUND(((SUM(AL38:AM38)/3517)*858)*0.57,2) -> 1747.23 | AO38: 11226.4114 | AP38: 4927.8278 | AQ38: =ROUND(((SUM(AO38:AP38)/3517)*858)*0.57,2) -> 2246.34 | AR38: 0.33 | AS38: 0.63 | AT38: 2.05
A39: Cancun | B39: Quintana Roo | C39: 1C | D39: Norte | E39: Aislada | F39: 1 | G39: 0.714 | H39: Block 15cm | I39: Vigueta y Bovedilla | K39: =VLOOKUP(A39,$F$132:$G$163,2,0)+VLOOKUP(D39,$H$132:$I$135,2,0) -> 101 | L39: 3081.7 | M39: 1441.88 | N39: 0 | O39: 0 | P39: 1 | Q39: 0 | R39: 1.5 | S39: 0 | T39: 0 | U39: 54.9837 | V39: 0 | W39: 54.9837 | X39: No Aplica | Y39: 22909.51 | Z39: 328 | AA39: 11 | AB39: 629.03 | AC39: 5266.05 | AD39: 1441.88 | AE39: 932.78 | AF39: 3239.73063 | AG39: 653.8848 | AH39: 541.43 | AI39: 3585.978096 | AJ39: 712.1856 | AK39: 597.69 | AL39: 10122.21674 | AM39: 2313.7728 | AN39: =ROUND(((SUM(AL39:AM39)/3517)*858)*0.57,2) -> 1729.3 | AO39: 11050.52629 | AP39: 2924.0352 | AQ39: =ROUND(((SUM(AO39:AP39)/3517)*858)*0.57,2) -> 1943.25 | AR39: 1.25 | AS39: 0.23 | AT39: 0.88
D40: Este | K40: =VLOOKUP(A39,$F$132:$G$163,2,0)+VLOOKUP(D40,$H$132:$I$135,2,0) -> 102 | L40: 2375.08 | M40: 1954.26 | N40: 1.5 | O40: 0 | P40: 2 | Q40: 2 | R40: 2 | S40: 55.67 | T40: 0 | U40: 28.3292 | V40: 54.9837 | W40: 26.8432 | X40: No Aplica | Y40: 39556.53 | Z40: 566 | AA40: 20 | AB40: 602.02 | AC40: 5002.51 | AD40: 1954.26 | AE40: 967.38 | AF40: 2583.09237 | AG40: 1097.2416 | AH40: 511.77 | AI40: 3508.65567 | AJ40: 1207.1424 | AK40: 655.76 | AL40: 9156.5349 | AM40: 4026.9024 | AN40: 1833.24 | AO40: 11344.84117 | AP40: 5000.2752 | AQ40: 2272.89 | AR40: 1.5 | AS40: 0.59 | AT40: 1.8
D41: Sur | K41: =VLOOKUP(A39,$F$132:$G$163,2,0)+VLOOKUP(D41,$H$132:$I$135,2,0) -> 103 | L41: 3090.13 | M41: 1452.57 | N41: 0 | O41: 0 | P41: 1 | Q41: 0 | R41: 1.5 | S41: 0 | T41: 0 | U41: 54.9837 | V41: 0 | W41: 54.9837 | X41: No Aplica | Y41: 22909.51 | Z41: 328 | AA41: 11 | AB41: 631.69 | AC41: 5262.2 | AD41: 1452.57 | AE41: 933.73 | AF41: 3133.520784 | AG41: 793.6224 | AH41: 546.09 | AI41: 3595.175436 | AJ41: 911.7888 | AK41: 626.72 | AL41: 10147.5159 | AM41: 2653.104 | AN41: 1780 | AO41: 11075.8384 | AP41: 3319.3824 | AQ41: 2001.74 | AR41: 1.24 | AS41: 0.33 | AT41: 0.91
D42: Oeste | K42: =VLOOKUP(A39,$F$132:$G$163,2,0)+VLOOKUP(D42,$H$132:$I$135,2,0) -> 104 | L42: 2271.19 | M42: 1950.66 | N42: 1.5 | O42: 0 | P42: 2 | Q42: 2 | R42: 2 | S42: 55.67 | T42: 0 | U42: 28.3292 | V42: 54.9837 | W42: 26.8432 | X42: No Aplica | Y42: 39556.53 | Z42: 566 | AA42: 20 | AB42: 587.07 | AC42: 5005.11 | AD42: 1950.66 | AE42: 967.24 | AF42: 2519.669586 | AG42: 1109.5872 | AH42: 504.67 | AI42: 3524.083884 | AJ42: 1222.944 | AK42: 660.1 | AL42: 8717.251806 | AM42: 4055.3376 | AN42: 1776.11 | AO42: 11387.27847 | AP42: 5032.6752 | AQ42: 2283.29 | AR42: 1.56 | AS42: 0.64 | AT42: 2.08
A43: Comalcalco | B43: Tabasco | C43: 1C | D43: Norte | E43: Aislada | F43: 1 | G43: 0.714 | H43: Block 15cm | I43: Vigueta y Bovedilla | K43: =VLOOKUP(A43,$F$132:$G$163,2,0)+VLOOKUP(D43,$H$132:$I$135,2,0) -> 111 | L43: 2390.18 | M43: 1335.51 | N43: 1 | O43: 0 | P43: 1 | Q43: 0 | R43: 1 | S43: 42.11 | T43: 0 | U43: 42.7798 | V43: 0 | W43: 43.56 | X43: 11 cm de Remetimiento en ventanas al Sur | Y43: 24790.33 | Z43: 355 | AA43: 12 | AB43: 518.08 | AC43: 4307.15 | AD43: 1468.53 | AE43: 803.14 | AF43: 3225.72531 | AG43: 640.2622 | AH43: 537.59 | AI43: 3570.475952 | AJ43: 697.3484 | AK43: 593.47 | AL43: 10078.45851 | AM43: 2265.5692 | AN43: 1716.51 | AO43: 11002.75498 | AP43: 2863.1178 | AQ43: 1928.13 | AR43: 1.17 | AS43: 0.23 | AT43: 0.87
D44: Este | K44: =VLOOKUP(A43,$F$132:$G$163,2,0)+VLOOKUP(D44,$H$132:$I$135,2,0) -> 112 | L44: 1919 | M44: 1711.61 | N44: 0 | O44: 1 | P44: 2 | Q44: 1 | R44: 2 | S44: 0 | T44: 43.56 | U44: 25.51 | V44: 42.7798 | W44: 28.0965 | X44: 7 cm de Remetimiento en ventanas al Oeste | Y44: 30282.34 | Z44: 433 | AA44: 15 | AB44: 504.86 | AC44: 4209.18 | AD44: 1788.9 | AE44: 834.07 | AF44: 2571.92569 | AG44: 1074.3824 | AH44: 507.04 | AI44: 3493.48779 | AJ44: 1181.9936 | AK44: 650.15 | AL44: 9116.9513 | AM44: 3943.0086 | AN44: 1816.07 | AO44: 11295.79754 | AP44: 4896.1028 | AQ44: 2251.58 | AR44: 1.35 | AS44: 0.59 | AT44: 1.79
D45: Sur | K45: =VLOOKUP(A43,$F$132:$G$163,2,0)+VLOOKUP(D45,$H$132:$I$135,2,0) -> 113 | L45: 2378.25 | M45: 1324.64 | N45: 1 | O45: 0 | P45: 1 | Q45: 0 | R45: 1 | S45: 42.11 | T45: 0 | U45: 42.7798 | V45: 0 | W45: 43.56 | X45: 11 cm de Remetimiento en ventanas al Norte | Y45: 24790.33 | Z45: 355 | AA45: 12 | AB45: 514.91 | AC45: 4293.18 | AD45: 1434.02 | AE45: 796.4 | AF45: 3119.974608 | AG45: 777.0886 | AH45: 541.91 | AI45: 3579.633532 | AJ45: 892.7932 | AK45: 621.92 | AL45: 10103.6483 | AM45: 2597.831 | AN45: 1766.22 | AO45: 11027.95767 | AP45: 3250.2286 | AQ45: 1985.47 | AR45: 1.15 | AS45: 0.33 | AT45: 0.9
D46: Oeste | K46: =VLOOKUP(A43,$F$132:$G$163,2,0)+VLOOKUP(D46,$H$132:$I$135,2,0) -> 114 | L46: 1919.03 | M46: 1740.31 | N46: 0 | O46: 1 | P46: 2 | Q46: 1 | R46: 2 | S46: 0 | T46: 43.56 | U46: 25.51 | V46: 42.7798 | W46: 28.0965 | X46: 7 cm de Remetimiento en ventanas al Este | Y46: 30282.34 | Z46: 433 | AA46: 15 | AB46: 508.85 | AC46: 4196.26 | AD46: 1821.06 | AE46: 836.74 | AF46: 2508.777082 | AG46: 1086.4708 | AH46: 499.94 | AI46: 3508.849308 | AJ46: 1197.466 | AK46: 654.44 | AL46: 8679.567222 | AM46: 3970.8514 | AN46: 1759.12 | AO46: 11338.05139 | AP46: 4927.8278 | AQ46: 2261.87 | AR46: 1.34 | AS46: 0.63 | AT46: 2.06
A47: Ciudad Victoria | B47: Tamaulipas | C47: 1C | D47: Norte | E47: Aislada | F47: 1 | G47: 0.714 | H47: Block 15cm | I47: Vigueta y Bovedilla | K47: =VLOOKUP(A47,$F$132:$G$163,2,0)+VLOOKUP(D47,$H$132:$I$135,2,0) -> 121 | L47: 1355.1 | M47: 479.26 | N47: 0 | O47: 0 | P47: 1 | Q47: 0 | R47: 1 | S47: 0 | T47: 0 | U47: 21.006 | V47: 0 | W47: 18.7687 | X47: No Aplica | Y47: 7730.61 | Z47: 111 | AA47: 4 | AB47: 255.08 | AC47: 1987.98 | AD47: 479.26 | AE47: 343.08 | AF47: 3148.445955 | AG47: 640.2622 | AH47: 526.84 | AI47: 3484.937336 | AJ47: 697.3484 | AK47: 581.57 | AL47: 9837.006833 | AM47: 2265.5692 | AN47: 1682.94 | AO47: 10739.15975 | AP47: 2863.1178 | AQ47: 1891.48 | AR47: 0.36 | AS47: 0.22 | AT47: 0.85
D48: Este | K48: =VLOOKUP(A47,$F$132:$G$163,2,0)+VLOOKUP(D48,$H$132:$I$135,2,0) -> 122 | L48: 1241.73 | M48: 602.98 | N48: 1 | O48: 0 | P48: 1 | Q48: 0 | R48: 1 | S48: 37.95 | T48: 0 | U48: 11.6768 | V48: 0 | W48: 11.8288 | X48: No Aplica | Y48: 11786.64 | Z48: 169 | AA48: 6 | AB48: 256.52 | AC48: 1925.77 | AD48: 602.98 | AE48: 351.64 | AF48: 2510.309545 | AG48: 1074.3824 | AH48: 498.47 | AI48: 3409.793595 | AJ48: 1181.9936 | AK48: 638.52 | AL48: 8898.53465 | AM48: 3943.0086 | AN48: 1785.69 | AO48: 11025.18183 | AP48: 4896.1028 | AQ48: 2213.95 | AR48: 0.39 | AS48: 0.57 | AT48: 1.76
D49: Sur | K49: =VLOOKUP(A47,$F$132:$G$163,2,0)+VLOOKUP(D49,$H$132:$I$135,2,0) -> 123 | L49: 1358.22 | M49: 472.19 | N49: 0 | O49: 0 | P49: 1 | Q49: 0 | R49: 1 | S49: 0 | T49: 0 | U49: 21.006 | V49: 0 | W49: 18.7687 | X49: No Aplica | Y49: 7730.61 | Z49: 111 | AA49: 4 | AB49: 254.53 | AC49: 1998.76 | AD49: 472.19 | AE49: 343.6 | AF49: 3045.228744 | AG49: 777.0886 | AH49: 531.52 | AI49: 3493.875526 | AJ49: 892.7932 | AK49: 609.99 | AL49: 9861.59315 | AM49: 2597.831 | AN49: 1732.56 | AO49: 10763.75866 | AP49: 3250.2286 | AQ49: 1948.73 | AR49: 0.37 | AS49: 0.32 | AT49: 0.89
D50: Oeste | K50: =VLOOKUP(A47,$F$132:$G$163,2,0)+VLOOKUP(D50,$H$132:$I$135,2,0) -> 124 | L50: 1246.72 | M50: 605.45 | N50: 1 | O50: 0 | P50: 1 | Q50: 0 | R50: 1 | S50: 37.95 | T50: 0 | U50: 11.6768 | V50: 0 | W50: 11.8288 | X50: No Aplica | Y50: 11786.64 | Z50: 169 | AA50: 6 | AB50: 257.56 | AC50: 1931 | AD50: 605.45 | AE50: 352.71 | AF50: 2448.673801 | AG50: 1086.4708 | AH50: 491.58 | AI50: 3424.787094 | AJ50: 1197.466 | AK50: 642.75 | AL50: 8471.629071 | AM50: 3970.8514 | AN50: 1730.2 | AO50: 11066.42339 | AP50: 4927.8278 | AQ50: 2224.1 | AR50: 0.39 | AS50: 0.62 | AT50: 2.02
A51: Tampico | B51: Tamaulipas | C51: 1C | D51: Norte | E51: Aislada | F51: 1 | G51: 0.714 | H51: Block 15cm | I51: Vigueta y Bovedilla | K51: =VLOOKUP(A51,$F$132:$G$163,2,0)+VLOOKUP(D51,$H$132:$I$135,2,0) -> 131 | L51: 1448.57 | M51: 370.45 | N51: 0 | O51: 0 | P51: 1.5 | Q51: 0 | R51: 0 | S51: 0 | T51: 0 | U51: 21.006 | V51: 0 | W51: 0 | X51: 17 cm Remetimiento en ventanas sin elemento sombreante | Y51: 4669.63 | Z51: 67 | AA51: 2 | AB51: 252.95 | AC51: 1782.69 | AD51: 481.15 | AE51: 314.8 | AF51: 3055.410615 | AG51: 640.2622 | AH51: 513.91 | AI51: 3381.958808 | AJ51: 697.3484 | AK51: 567.25 | AL51: 9546.327149 | AM51: 2265.5692 | AN51: 1642.52 | AO51: 10421.8218 | AP51: 2863.1178 | AQ51: 1847.35 | AR51: 0.25 | AS51: 0.22 | AT51: 0.84
D52: Este | K52: =VLOOKUP(A51,$F$132:$G$163,2,0)+VLOOKUP(D52,$H$132:$I$135,2,0) -> 132 | L52: 1247.86 | M52: 514.99 | N52: 1 | O52: 0 | P52: 1 | Q52: 0 | R52: 0 | S52: 37.95 | T52: 0 | U52: 11.6768 | V52: 0 | W52: 0 | X52: 22 cm Remetimiento en las ventanas al Oeste | Y52: 9487.59 | Z52: 136 | AA52: 5 | AB52: 245.13 | AC52: 1708.29 | AD52: 605.06 | AE52: 321.69 | AF52: 2436.130885 | AG52: 1074.3824 | AH52: 488.16 | AI52: 3309.035535 | AJ52: 1181.9936 | AK52: 624.5 | AL52: 8635.58645 | AM52: 3943.0086 | AN52: 1749.13 | AO52: 10699.39204 | AP52: 4896.1028 | AQ52: 2168.65 | AR52: 0.31 | AS52: 0.56 | AT52: 1.72
D53: Sur | K53: =VLOOKUP(A51,$F$132:$G$163,2,0)+VLOOKUP(D53,$H$132:$I$135,2,0) -> 133 | L53: 1384.53 | M53: 366.63 | N53: 0 | O53: 0 | P53: 1.5 | Q53: 0 | R53: 0 | S53: 0 | T53: 0 | U53: 21.006 | V53: 0 | W53: 0 | X53: 17 cm Remetimiento en ventanas sin elemento sombreante | Y53: 4669.63 | Z53: 67 | AA53: 2 | AB53: 243.51 | AC53: 1792.82 | AD53: 474 | AE53: 315.21 | AF53: 2955.243432 | AG53: 777.0886 | AH53: 519 | AI53: 3390.632878 | AJ53: 892.7932 | AK53: 595.64 | AL53: 9570.18695 | AM53: 2597.831 | AN53: 1692.04 | AO53: 10445.69382 | AP53: 3250.2286 | AQ53: 1904.5 | AR53: 0.29 | AS53: 0.31 | AT53: 0.87
D54: Oeste | K54: =VLOOKUP(A51,$F$132:$G$163,2,0)+VLOOKUP(D54,$H$132:$I$135,2,0) -> 134 | L54: 1217.95 | M54: 511.35 | N54: 1 | O54: 0 | P54: 1 | Q54: 0 | R54: 0 | S54: 37.95 | T54: 0 | U54: 11.6768 | V54: 0 | W54: 0 | X54: 22 cm Remetimiento en las ventanas al Este | Y54: 9487.59 | Z54: 136 | AA54: 5 | AB54: 240.47 | AC54: 1714.85 | AD54: 605.45 | AE54: 322.65 | AF54: 2376.316453 | AG54: 1086.4708 | AH54: 481.52 | AI54: 3323.585982 | AJ54: 1197.466 | AK54: 628.68 | AL54: 8221.295763 | AM54: 3970.8514 | AN54: 1695.39 | AO54: 10739.41493 | AP54: 4927.8278 | AQ54: 2178.62 | AR54: 0.34 | AS54: 0.6 | AT54: 1.98
A55: Coatzacoalcos | B55: Veracruz | C55: 1C | D55: Norte | E55: Aislada | F55: 1 | G55: 0.714 | H55: Block 15cm | I55: Vigueta y Bovedilla | K55: =VLOOKUP(A55,$F$132:$G$163,2,0)+VLOOKUP(D55,$H$132:$I$135,2,0) -> 141 | L55: 2390.9 | M55: 883.88 | N55: 1 | O55: 0 | P55: 1 | Q55: 0 | R55: 0 | S55: 34.33 | T55: 0 | U55: 46.8791 | V55: 0 | W55: 0 | X55: 8 cm Remetimiento en ventanas sin elementos sombreantes | Y55: 15640.99 | Z55: 224 | AA55: 8 | AB55: 455.38 | AC55: 3312.88 | AD55: 955.22 | AE55: 593.5 | AF55: 3074.918025 | AG55: 640.2622 | AH55: 516.62 | AI55: 3403.55108 | AJ55: 697.3484 | AK55: 570.25 | AL55: 9607.276115 | AM55: 2265.5692 | AN55: 1650.99 | AO55: 10488.3604 | AP55: 2863.1178 | AQ55: 1856.6 | AR55: 0.57 | AS55: 0.22 | AT55: 0.84
D56: Este | K56: =VLOOKUP(A55,$F$132:$G$163,2,0)+VLOOKUP(D56,$H$132:$I$135,2,0) -> 142 | L56: 1977.89 | M56: 1122.99 | N56: 0 | O56: 0 | P56: 2 | Q56: 1 | R56: 2 | S56: 0 | T56: 0 | U56: 19.56 | V56: 46.8791 | W56: 18.147 | X56: 17 cm Remetimiento en ventanas sin elementos sombreantes | Y56: 18608.31 | Z56: 266 | AA56: 9 | AB56: 431.2 | AC56: 3126.44 | AD56: 1262.44 | AE56: 610.3 | AF56: 2451.684475 | AG56: 1074.3824 | AH56: 490.32 | AI56: 3330.162225 | AJ56: 1181.9936 | AK56: 627.44 | AL56: 8690.72075 | AM56: 3943.0086 | AN56: 1756.8 | AO56: 10767.70281 | AP56: 4896.1028 | AQ56: 2178.15 | AR56: 0.73 | AS56: 0.56 | AT56: 1.73
D57: Sur | K57: =VLOOKUP(A55,$F$132:$G$163,2,0)+VLOOKUP(D57,$H$132:$I$135,2,0) -> 143 | L57: 2258.35 | M57: 911.06 | N57: 1 | O57: 0 | P57: 1 | Q57: 0 | R57: 0 | S57: 34.33 | T57: 0 | U57: 46.8791 | V57: 0 | W57: 0 | X57: 8 cm Remetimiento en ventanas sin elementos sombreantes | Y57: 15640.99 | Z57: 224 | AA57: 8 | AB57: 440.73 | AC57: 3323.67 | AD57: 967.89 | AE57: 596.77 | AF57: 2974.11132 | AG57: 777.0886 | AH57: 521.63 | AI57: 3412.28053 | AJ57: 892.7932 | AK57: 598.65 | AL57: 9631.28825 | AM57: 2597.831 | AN57: 1700.53 | AO57: 10512.38483 | AP57: 3250.2286 | AQ57: 1913.77 | AR57: 0.64 | AS57: 0.32 | AT57: 0.87
D58: Oeste | K58: =VLOOKUP(A55,$F$132:$G$163,2,0)+VLOOKUP(D58,$H$132:$I$135,2,0) -> 144 | L58: 1914.78 | M58: 1113.76 | N58: 0 | O58: 0 | P58: 2 | Q58: 1 | R58: 2 | S58: 0 | T58: 0 | U58: 19.56 | V58: 46.8791 | W58: 18.147 | X58: 17 cm Remetimiento en ventanas sin elementos sombreantes | Y58: 18608.31 | Z58: 266 | AA58: 9 | AB58: 421.14 | AC58: 3140.9 | AD58: 1256.58 | AE58: 611.5 | AF58: 2391.488155 | AG58: 1086.4708 | AH58: 483.63 | AI58: 3344.80557 | AJ58: 1197.466 | AK58: 631.63 | AL58: 8273.785005 | AM58: 3970.8514 | AN58: 1702.69 | AO58: 10807.98122 | AP58: 4927.8278 | AQ58: 2188.16 | AR58: 0.78 | AS58: 0.61 | AT58: 1.99
A59: Veracruz | B59: Veracruz | C59: 1C | D59: Norte | E59: Aislada | F59: 1 | G59: 0.714 | H59: Block 15cm | I59: Vigueta y Bovedilla | K59: =VLOOKUP(A59,$F$132:$G$163,2,0)+VLOOKUP(D59,$H$132:$I$135,2,0) -> 151 | L59: 2319.77 | M59: 922.56 | N59: 1 | O59: 0 | P59: 1 | Q59: 0 | R59: 0 | S59: 34.33 | T59: 0 | U59: 46.8791 | V59: 0 | W59: 0 | X59: 15 cm Remetimiento en ventanas sin elementos sombreantes | Y59: 16395.9 | Z59: 234 | AA59: 8 | AB59: 450.87 | AC59: 3265.02 | AD59: 957.61 | AE59: 587.18 | AF59: 3055.16052 | AG59: 640.2622 | AH59: 513.87 | AI59: 3381.681984 | AJ59: 697.3484 | AK59: 567.21 | AL59: 9545.545752 | AM59: 2265.5692 | AN59: 1642.41 | AO59: 10420.96874 | AP59: 2863.1178 | AQ59: 1847.23 | AR59: 0.56 | AS59: 0.22 | AT59: 0.84
D60: Este | K60: =VLOOKUP(A59,$F$132:$G$163,2,0)+VLOOKUP(D60,$H$132:$I$135,2,0) -> 152 | L60: 1856.37 | M60: 1197.6 | N60: 0 | O60: 0 | P60: 2 | Q60: 1 | R60: 2 | S60: 0 | T60: 0 | U60: 19.56 | V60: 46.8791 | W60: 18.147 | X60: 10 cm Remetimiento en ventanas sin elementos sombreantes | Y60: 21303.86 | Z60: 305 | AA60: 11 | AB60: 424.67 | AC60: 3102.27 | AD60: 1266.86 | AE60: 607.55 | AF60: 2435.93148 | AG60: 1074.3824 | AH60: 488.13 | AI60: 3308.76468 | AJ60: 1181.9936 | AK60: 624.47 | AL60: 8634.8796 | AM60: 3943.0086 | AN60: 1749.03 | AO60: 10698.51626 | AP60: 4896.1028 | AQ60: 2168.53 | AR60: 0.75 | AS60: 0.56 | AT60: 1.72
D61: Sur | K61: =VLOOKUP(A59,$F$132:$G$163,2,0)+VLOOKUP(D61,$H$132:$I$135,2,0) -> 153 | L61: 2180.03 | M61: 874.88 | N61: 1 | O61: 0 | P61: 1 | Q61: 0 | R61: 0 | S61: 34.33 | T61: 0 | U61: 46.8791 | V61: 0 | W61: 0 | X61: 15 cm Remetimiento en ventanas sin elementos sombreantes | Y61: 16395.9 | Z61: 234 | AA61: 8 | AB61: 424.8 | AC61: 3268.63 | AD61: 969.91 | AE61: 589.39 | AF61: 2955.001536 | AG61: 777.0886 | AH61: 518.97 | AI61: 3390.355344 | AJ61: 892.7932 | AK61: 595.6 | AL61: 9569.4036 | AM61: 2597.831 | AN61: 1691.93 | AO61: 10444.83881 | AP61: 3250.2286 | AQ61: 1904.38 | AR61: 0.67 | AS61: 0.31 | AT61: 0.87
D62: Oeste | K62: =VLOOKUP(A59,$F$132:$G$163,2,0)+VLOOKUP(D62,$H$132:$I$135,2,0) -> 154 | L62: 1777.04 | M62: 1189.98 | N62: 0 | O62: 0 | P62: 2 | Q62: 1 | R62: 2 | S62: 0 | T62: 0 | U62: 19.56 | V62: 46.8791 | W62: 18.147 | X62: 10 cm Remetimiento en ventanas sin elementos sombreantes | Y62: 21303.86 | Z62: 305 | AA62: 11 | AB62: 412.58 | AC62: 3116.74 | AD62: 1260.46 | AE62: 608.68 | AF62: 2376.121944 | AG62: 1086.4708 | AH62: 481.49 | AI62: 3323.313936 | AJ62: 1197.466 | AK62: 628.64 | AL62: 8220.622824 | AM62: 3970.8514 | AN62: 1695.3 | AO62: 10738.53588 | AP62: 4927.8278 | AQ62: 2178.5 | AR62: 0.8 | AS62: 0.6 | AT62: 1.98
A63: Monclova | B63: Coahuila | C63: 1D | D63: Norte | E63: Aislada | F63: 1 | G63: 0.714 | H63: Block 15cm | I63: Vigueta y Bovedilla | K63: =VLOOKUP(A63,$F$132:$G$163,2,0)+VLOOKUP(D63,$H$132:$I$135,2,0) -> 161 | L63: 1319.26 | M63: 401.22 | N63: 0 | O63: 0 | P63: 1 | Q63: 0 | R63: 1 | S63: 0 | T63: 0 | U63: 17.2966 | V63: 0 | W63: 18.5635 | X63: No Aplica | Y63: 6969.77 | Z63: =ROUND(Y63*0.0143,0) -> 100 | AA63: =ROUND(Y63*0.0005,0) -> 3 | AB63: =ROUND(((SUM(L63:M63)/3517)*858)*0.57,2) -> 239.24 | AC63: 1787.02 | AD63: 401.22 | AE63: 304.29 | AF63: 3028.65045 | AG63: 681.13 | AH63: =ROUND(((SUM(AF63:AG63)/3517)*858)*0.57,2) -> 515.87 | AI63: 3352.33864 | AJ63: 741.86 | AK63: =ROUND(((SUM(AI63:AJ63)/3517)*858)*0.57,2) -> 569.32 | AL63: 9462.71767 | AM63: 2410.18 | AN63: =ROUND(((SUM(AL63:AM63)/3517)*858)*0.57,2) -> 1651 | AO63: 10330.54449 | AP63: 3045.87 | AQ63: =ROUND(((SUM(AO63:AP63)/3517)*858)*0.57,2) -> 1860.07 | AR63: 0.27 | AS63: 0.22 | AT63: 0.86
D64: Este | K64: =VLOOKUP(A63,$F$132:$G$163,2,0)+VLOOKUP(D64,$H$132:$I$135,2,0) -> 162 | L64: 1292.2 | M64: 467.48 | N64: 1 | O64: 0 | P64: 1 | Q64: 0 | R64: 0 | S64: 39.73 | T64: 0 | U64: 17.2966 | V64: 0 | W64: 0 | X64: 12 cm de remetimento en todas las ventanas de F. Principal | Y64: 9705.04 | Z64: 139 | AA64: 5 | AB64: 244.69 | AC64: 1734.73 | AD64: 535.09 | AE64: 315.63 | AF64: 2414.79455 | AG64: 1142.96 | AH64: 494.73 | AI64: 3280.05405 | AJ64: 1257.44 | AK64: 630.97 | AL64: 8559.9535 | AM64: 4194.69 | AN64: 1773.61 | AO64: 10605.68369 | AP64: 5208.62 | AQ64: 2199.07 | AR64: 0.29 | AS64: 0.56 | AT64: 1.74
D65: Sur | K65: =VLOOKUP(A63,$F$132:$G$163,2,0)+VLOOKUP(D65,$H$132:$I$135,2,0) -> 163 | L65: 1331.86 | M65: 550.63 | N65: 0 | O65: 0 | P65: 1 | Q65: 0 | R65: 1 | S65: 0 | T65: 0 | U65: 17.2966 | V65: 0 | W65: 18.5635 | X65: No Aplica | Y65: 6969.77 | Z65: 100 | AA65: 3 | AB65: 261.77 | AC65: 1797.68 | AD65: 550.63 | AE65: 326.55 | AF65: 2929.36056 | AG65: 826.69 | AH65: 522.3 | AI65: 3360.93674 | AJ65: 949.78 | AK65: 599.43 | AL65: 9486.3685 | AM65: 2763.65 | AN65: 1703.44 | AO65: 10354.20743 | AP65: 3457.69 | AQ65: 1920.63 | AR65: 0.27 | AS65: 0.32 | AT65: 0.89
D66: Oeste | K66: =VLOOKUP(A63,$F$132:$G$163,2,0)+VLOOKUP(D66,$H$132:$I$135,2,0) -> 164 | L66: 1339.2 | M66: 544.41 | N66: 1 | O66: 0 | P66: 0 | Q66: 0 | R66: 1 | S66: 39.73 | T66: 0 | U66: 0 | V66: 0 | W66: 18.5635 | X66: 12 cm de remetimento en todas las ventanas de F. Principal | Y66: 9705.04 | Z66: 139 | AA66: 5 | AB66: 261.93 | AC66: 1764.81 | AD66: 614.15 | AE66: 330.81 | AF66: 2355.50399 | AG66: 1155.82 | AH66: 488.27 | AI66: 3294.47706 | AJ66: 1273.9 | AK66: 635.26 | AL66: 8149.29129 | AM66: 4224.31 | AN66: 1720.62 | AO66: 10645.35605 | AP66: 5242.37 | AQ66: 2209.28 | AR66: 0.28 | AS66: 0.6 | AT66: 2
A67: Ciudad Valles | B67: San Luis Potosi | C67: 1D | D67: Norte | E67: Aislada | F67: 1 | G67: 0.714 | H67: Block 15cm | I67: Vigueta y Bovedilla | K67: =VLOOKUP(A67,$F$132:$G$163,2,0)+VLOOKUP(D67,$H$132:$I$135,2,0) -> 171 | L67: 1413.04 | M67: 443.69 | N67: 0 | O67: 0 | P67: 1 | Q67: 0 | R67: 1 | S67: 0 | T67: 0 | U67: 17.2966 | V67: 0 | W67: 18.5635 | X67: No Aplica | Y67: 6969.71 | Z67: 100 | AA67: 3 | AB67: 258.19 | AC67: 1909.22 | AD67: 443.69 | AE67: =ROUND(((SUM(AC67:AD67)/3517)*858)*0.57,2) -> 327.19 | AF67: 3151.69719 | AG67: 647.0735 | AH67: 528.24 | AI67: 3488.536048 | AJ67: 704.767 | AK67: 583.1 | AL67: 9847.164994 | AM67: 2289.671 | AN67: 1687.7 | AO67: 10750.24952 | AP67: 2893.5765 | AQ67: 1897.26 | AR67: 0.28 | AS67: 0.22 | AT67: 0.86
D68: Este | K68: =VLOOKUP(A67,$F$132:$G$163,2,0)+VLOOKUP(D68,$H$132:$I$135,2,0) -> 172 | L68: 1369.3 | M68: 423.23 | N68: 1.5 | O68: 0 | P68: 1 | Q68: 0 | R68: 0 | S68: 39.73 | T68: 0 | U68: 17.2966 | V68: 0 | W68: 0 | X68: 17cm de remetimento en todas las ventanas de F. Principal | Y68: 10578.71 | Z68: 151 | AA68: 5 | AB68: 249.26 | AC68: 1872.38 | AD68: 499.37 | AE68: 329.81 | AF68: 2512.90181 | AG68: 1085.812 | AH68: 500.42 | AI68: 3413.31471 | AJ68: 1194.568 | AK68: 640.75 | AL68: 8907.7237 | AM68: 3984.9555 | AN68: 1792.8 | AO68: 11036.56696 | AP68: 4948.189 | AQ68: 2222.78 | AR68: =ROUND((((SUM(AC68:AD68)-SUM(L68:M68))/3517)*858)/428,2) -> 0.33 | AS68: =ROUND((((SUM(AI68:AJ68)-SUM(AF68:AG68))/3517)*858)/428,2) -> 0.58 | AT68: =ROUND((((SUM(AO68:AP68)-SUM(AL68:AM68))/3517)*858)/428,2) -> 1.76
D69: Sur | K69: =VLOOKUP(A67,$F$132:$G$163,2,0)+VLOOKUP(D69,$H$132:$I$135,2,0) -> 173 | L69: 1417.89 | M69: 500.2 | N69: 0 | O69: 0 | P69: 1 | Q69: 0 | R69: 1 | S69: 0 | T69: 0 | U69: 17.2966 | V69: 0 | W69: 18.5635 | X69: No Aplica | Y69: 6969.71 | Z69: 100 | AA69: 3 | AB69: 266.72 | AC69: 1910.2 | AD69: 500.2 | AE69: 335.18 | AF69: 3048.373392 | AG69: 785.3555 | AH69: 533.1 | AI69: 3497.483468 | AJ69: 902.291 | AK69: 611.82 | AL69: 9871.7767 | AM69: 2625.4675 | AN69: 1737.82 | AO69: 10774.87383 | AP69: 3284.8055 | AQ69: 1955.08 | AR69: 0.28 | AS69: 0.32 | AT69: 0.89
D70: Oeste | K70: =VLOOKUP(A67,$F$132:$G$163,2,0)+VLOOKUP(D70,$H$132:$I$135,2,0) -> 174 | L70: 1419.58 | M70: 475.98 | N70: 1.5 | O70: 0 | P70: 0 | Q70: 0 | R70: 1 | S70: 39.73 | T70: 0 | U70: 0 | V70: 0 | W70: 18.5635 | X70: 17cm de remetimento en todas las ventanas de F. Principal | Y70: 10578.71 | Z70: 151 | AA70: 5 | AB70: 263.59 | AC70: 1888.81 | AD70: 557.13 | AE70: 340.12 | AF70: 2451.202418 | AG70: 1098.029 | AH70: 493.54 | AI70: 3428.323692 | AJ70: 1210.205 | AK70: 645.02 | AL70: 8480.377278 | AM70: 4013.0945 | AN70: 1737.29 | AO70: 11077.85111 | AP70: 4980.2515 | AQ70: 2232.98 | AR70: 0.31 | AS70: 0.62 | AT70: 2.03
A71: Mazatlán | B71: Sinaloa | C71: 1D | D71: Norte | E71: Aislada | F71: 1 | G71: 0.714 | H71: Block 15cm | I71: Vigueta y Bovedilla | K71: =VLOOKUP(A71,$F$132:$G$163,2,0)+VLOOKUP(D71,$H$132:$I$135,2,0) -> 181 | L71: 1468.76 | M71: 324.15 | N71: 0 | O71: 0 | P71: 1 | Q71: 0 | R71: 0 | S71: 0 | T71: 0 | U71: 16.3314 | V71: 0 | W71: 0 | X71: 11 cm de Remetimiento en ventanas al Norte | Y71: 3174.17 | Z71: 45 | AA71: 2 | AB71: 249.31 | AC71: 1944.07 | AD71: 352.13 | AE71: 319.3 | AF71: 3095.425815 | AG71: 681.13 | AH71: =ROUND(((SUM(AF71:AG71)/3517)*858)*0.57,2) -> 525.15 | AI71: 3426.250648 | AJ71: 741.86 | AK71: =ROUND(((SUM(AI71:AJ71)/3517)*858)*0.57,2) -> 579.6 | AL71: 9671.350669 | AM71: 2410.18 | AN71: =ROUND(((SUM(AL71:AM71)/3517)*858)*0.57,2) -> 1680.01 | AO71: 10558.31124 | AP71: 3045.87 | AQ71: =ROUND(((SUM(AO71:AP71)/3517)*858)*0.57,2) -> 1891.74 | AR71: 0.29 | AS71: 0.22 | AT71: 0.87
D72: Este | K72: =VLOOKUP(A71,$F$132:$G$163,2,0)+VLOOKUP(D72,$H$132:$I$135,2,0) -> 182 | L72: 1207.78 | M72: 556.11 | N72: 1 | O72: 0 | P72: 0 | Q72: 0 | R72: 1 | S72: 38 | T72: 0 | U72: 0 | V72: 0 | W72: 11.1945 | X72: 13 cm de Remetimiento en ventanas al Este | Y72: 9403.36 | Z72: 134 | AA72: 5 | AB72: 245.28 | AC72: 1901.99 | AD72: 614.36 | AE72: 349.91 | AF72: 2468.035685 | AG72: 1142.96 | AH72: 502.13 | AI72: 3352.372335 | AJ72: 1257.44 | AK72: 641.02 | AL72: 8748.68245 | AM72: 4194.69 | AN72: 1799.85 | AO72: 10839.51668 | AP72: 5208.62 | AQ72: 2231.59 | AR72: 0.43 | AS72: 0.57 | AT72: 1.77
D73: Sur | K73: =VLOOKUP(A71,$F$132:$G$163,2,0)+VLOOKUP(D73,$H$132:$I$135,2,0) -> 183 | L73: 1446.5 | M73: 350.49 | N73: 0 | O73: 0 | P73: 1 | Q73: 0 | R73: 0 | S73: 0 | T73: 0 | U73: 16.3314 | V73: 0 | W73: 0 | X73: 11 cm de Remetimiento en ventanas al Sur | Y73: 3174.17 | Z73: 45 | AA73: 2 | AB73: 249.88 | AC73: 1946.46 | AD73: 402.05 | AE73: 326.57 | AF73: 2993.946792 | AG73: 826.69 | AH73: 531.28 | AI73: 3435.038318 | AJ73: 949.78 | AK73: 609.74 | AL73: 9695.52295 | AM73: 2763.65 | AN73: 1732.52 | AO73: 10582.4959 | AP73: 3457.69 | AQ73: 1952.37 | AR73: 0.31 | AS73: 0.32 | AT73: 0.9
D74: Oeste | K74: =VLOOKUP(A71,$F$132:$G$163,2,0)+VLOOKUP(D74,$H$132:$I$135,2,0) -> 184 | L74: 1228.08 | M74: 557.21 | N74: 1 | O74: 0 | P74: 0 | Q74: 0 | R74: 1 | S74: 38 | T74: 0 | U74: 0 | V74: 0 | W74: 11.1945 | X74: 13 cm de Remetimiento en ventanas al Oeste | Y74: 9403.36 | Z74: 134 | AA74: 5 | AB74: 248.26 | AC74: 1905.52 | AD74: 617.3 | AE74: 350.81 | AF74: 2407.437893 | AG74: 1155.82 | AH74: 495.49 | AI74: 3367.113342 | AJ74: 1273.9 | AK74: 645.36 | AL74: 8328.966003 | AM74: 4224.31 | AN74: 1745.61 | AO74: 10880.06373 | AP74: 5242.37 | AQ74: 2241.92 | AR74: 0.42 | AS74: 0.61 | AT74: 2.03
A75: Villahermosa | B75: Tabasco | C75: 1D | D75: Norte | E75: Aislada | F75: 1 | G75: 0.714 | H75: Block 15cm | I75: Vigueta y Bovedilla | K75: =VLOOKUP(A75,$F$132:$G$163,2,0)+VLOOKUP(D75,$H$132:$I$135,2,0) -> 191 | L75: 1468.76 | M75: 324.15 | N75: 2 | O75: 0 | P75: 1 | Q75: 0 | R75: 1 | S75: 42.11 | T75: 0 | U75: 42.7798 | V75: 0 | W75: 43.56 | X75: 11 cm de Remetimiento en ventanas al Norte | Y75: 3174.17 | Z75: 45 | AA75: 2 | AB75: 249.31 | AC75: 4465.09 | AD75: 1468.53 | AE75: 825.11 | AF75: 3373.28136 | AG75: 640.2622 | AH75: 558.11 | AI75: 3733.802112 | AJ75: 697.3484 | AK75: 616.18 | AL75: 10539.48274 | AM75: 2265.5692 | AN75: 1780.62 | AO75: 11506.05979 | AP75: 2863.1178 | AQ75: 1998.12 | AR75: 2.36 | AS75: 0.24 | AT75: 0.89
D76: Este | K76: =VLOOKUP(A75,$F$132:$G$163,2,0)+VLOOKUP(D76,$H$132:$I$135,2,0) -> 192 | L76: 1207.78 | M76: 556.11 | N76: 0 | O76: 1 | P76: 2 | Q76: 1 | R76: 2 | S76: 0 | T76: 43.56 | U76: 25.51 | V76: 42.7798 | W76: 28.0965 | X76: 13 cm de Remetimiento en ventanas al Este | Y76: 9403.36 | Z76: 134 | AA76: 5 | AB76: 245.28 | AC76: 4332.72 | AD76: 1788.9 | AE76: 851.25 | AF76: 2689.57464 | AG76: 1074.3824 | AH76: 523.4 | AI76: 3653.29224 | AJ76: 1181.9936 | AK76: 672.38 | AL76: 9533.9928 | AM76: 3943.0086 | AN76: 1874.06 | AO76: 11812.50715 | AP76: 4896.1028 | AQ76: 2323.43 | AR76: 2.48 | AS76: 0.61 | AT76: 1.84
D77: Sur | K77: =VLOOKUP(A75,$F$132:$G$163,2,0)+VLOOKUP(D77,$H$132:$I$135,2,0) -> 193 | L77: 1446.5 | M77: 350.49 | N77: 2 | O77: 0 | P77: 1 | Q77: 0 | R77: 1 | S77: 42.11 | T77: 0 | U77: 42.7798 | V77: 0 | W77: 43.56 | X77: 11 cm de Remetimiento en ventanas al Sur | Y77: 3174.17 | Z77: 45 | AA77: 2 | AB77: 249.88 | AC77: 4435.53 | AD77: 1434.02 | AE77: 816.2 | AF77: 3262.693248 | AG77: 777.0886 | AH77: 561.76 | AI77: 3743.378592 | AJ77: 892.7932 | AK77: 644.69 | AL77: 10565.8248 | AM77: 2597.831 | AN77: 1830.49 | AO77: 11532.41534 | AP77: 3250.2286 | AQ77: 2055.62 | AR77: 2.32 | AS77: 0.34 | AT77: 0.92
D78: Oeste | K78: =VLOOKUP(A75,$F$132:$G$163,2,0)+VLOOKUP(D78,$H$132:$I$135,2,0) -> 194 | L78: 1228.08 | M78: 557.21 | N78: 0 | O78: 1 | P78: 2 | Q78: 1 | R78: 2 | S78: 0 | T78: 43.56 | U78: 25.51 | V78: 42.7798 | W78: 28.0965 | X78: 13 cm de Remetimiento en ventanas al Oeste | Y78: 9403.36 | Z78: 134 | AA78: 5 | AB78: 248.26 | AC78: 4304.98 | AD78: 1821.06 | AE78: 851.86 | AF78: 2623.537392 | AG78: 1086.4708 | AH78: 515.9 | AI78: 3669.356448 | AJ78: 1197.466 | AK78: 676.76 | AL78: 9076.601232 | AM78: 3970.8514 | AN78: 1814.33 | AO78: 11856.69384 | AP78: 4927.8278 | AQ78: 2333.99 | AR78: 2.47 | AS78: 0.66 | AT78: 2.13
A79: Matamoros | B79: Tamaulipas | C79: 1D | D79: Norte | E79: Aislada | F79: 1 | G79: 0.714 | H79: Block 15cm | I79: Vigueta y Bovedilla | K79: =VLOOKUP(A79,$F$132:$G$163,2,0)+VLOOKUP(D79,$H$132:$I$135,2,0) -> 201 | L79: 1468.76 | M79: 324.15 | N79: 0 | O79: 0 | P79: 2 | Q79: 0 | R79: 0 | S79: 0 | T79: 0 | U79: 21.006 | V79: 0 | W79: 0 | X79: 11 cm de Remetimiento en ventanas al Norte | Y79: 3174.17 | Z79: 45 | AA79: 2 | AB79: 249.31 | AC79: 1853.11 | AD79: 478.9 | AE79: 324.28 | AF79: 3074.918025 | AG79: 640.2622 | AH79: 516.62 | AI79: 3403.55108 | AJ79: 697.3484 | AK79: 570.25 | AL79: 9607.276115 | AM79: 2265.5692 | AN79: 1650.99 | AO79: 10488.3604 | AP79: 2863.1178 | AQ79: 1856.6 | AR79: 0.31 | AS79: 0.22 | AT79: 0.84
D80: Este | K80: =VLOOKUP(A79,$F$132:$G$163,2,0)+VLOOKUP(D80,$H$132:$I$135,2,0) -> 202 | L80: 1207.78 | M80: 556.11 | N80: 1.5 | O80: 0 | P80: 1 | Q80: 0 | R80: 0 | S80: 37.95 | T80: 0 | U80: 11.6768 | V80: 0 | W80: 0 | X80: 13 cm de Remetimiento en ventanas al Este | Y80: 9403.36 | Z80: 134 | AA80: 5 | AB80: 245.28 | AC80: 1803.86 | AD80: 605.78 | AE80: 335.07 | AF80: 2451.684475 | AG80: 1074.3824 | AH80: 490.32 | AI80: 3330.162225 | AJ80: 1181.9936 | AK80: 627.44 | AL80: 8690.72075 | AM80: 3943.0086 | AN80: 1756.8 | AO80: 10767.70281 | AP80: 4896.1028 | AQ80: 2178.15 | AR80: 0.37 | AS80: 0.56 | AT80: 1.73
D81: Sur | K81: =VLOOKUP(A79,$F$132:$G$163,2,0)+VLOOKUP(D81,$H$132:$I$135,2,0) -> 203 | L81: 1446.5 | M81: 350.49 | N81: 0 | O81: 0 | P81: 2 | Q81: 0 | R81: 0 | S81: 0 | T81: 0 | U81: 21.006 | V81: 0 | W81: 0 | X81: 11 cm de Remetimiento en ventanas al Sur | Y81: 3174.17 | Z81: 45 | AA81: 2 | AB81: 249.88 | AC81: 1863.36 | AD81: 470.85 | AE81: 324.59 | AF81: 2974.11132 | AG81: 777.0886 | AH81: 521.63 | AI81: 3412.28053 | AJ81: 892.7932 | AK81: 598.65 | AL81: 9631.28825 | AM81: 2597.831 | AN81: 1700.53 | AO81: 10512.38483 | AP81: 3250.2286 | AQ81: 1913.77 | AR81: 0.31 | AS81: 0.32 | AT81: 0.87
D82: Oeste | K82: =VLOOKUP(A79,$F$132:$G$163,2,0)+VLOOKUP(D82,$H$132:$I$135,2,0) -> 204 | L82: 1228.08 | M82: 557.21 | N82: 1.5 | O82: 0 | P82: 1 | Q82: 0 | R82: 0 | S82: 37.95 | T82: 0 | U82: 11.6768 | V82: 0 | W82: 0 | X82: 13 cm de Remetimiento en ventanas al Oeste | Y82: 9403.36 | Z82: 134 | AA82: 5 | AB82: 248.26 | AC82: 1802.47 | AD82: 608.13 | AE82: 335.21 | AF82: 2391.488155 | AG82: 1086.4708 | AH82: 483.63 | AI82: 3344.80557 | AJ82: 1197.466 | AK82: 631.63 | AL82: 8273.785005 | AM82: 3970.8514 | AN82: 1702.69 | AO82: 10807.98122 | AP82: 4927.8278 | AQ82: 2188.16 | AR82: 0.36 | AS82: 0.61 | AT82: 1.99
A83: La Paz | B83: Baja California Sur | C83: 1E | D83: Norte | E83: Aislada | F83: 1 | G83: 0.714 | H83: Block 15cm | I83: Vigueta y Bovedilla | K83: =VLOOKUP(A83,$F$132:$G$163,2,0)+VLOOKUP(D83,$H$132:$I$135,2,0) -> 211 | L83: 1453.21 | M83: 358.77 | N83: 1.5 | O83: 0 | P83: 0 | Q83: 0 | R83: 0 | S83: 39.73 | T83: 0 | U83: 0 | V83: 0 | W83: 0 | X83: 14 cm de remetimento en todas las ventanas de F. Principal | Y83: 8430.31 | Z83: =ROUND(Y83*0.0143,0) -> 121 | AA83: =ROUND(Y83*0.0005,0) -> 4 | AB83: =ROUND(((SUM(L83:M83)/3517)*858)*0.57,2) -> 251.97 | AC83: 1787.02 | AD83: 401.22 | AE83: 304.29 | AF83: 3028.65045 | AG83: 681.13 | AH83: =ROUND(((SUM(AF83:AG83)/3517)*858)*0.57,2) -> 515.87 | AI83: 3352.33864 | AJ83: 741.86 | AK83: =ROUND(((SUM(AI83:AJ83)/3517)*858)*0.57,2) -> 569.32 | AL83: 9462.71767 | AM83: 2410.18 | AN83: =ROUND(((SUM(AL83:AM83)/3517)*858)*0.57,2) -> 1651 | AO83: 10330.54449 | AP83: 3045.87 | AQ83: =ROUND(((SUM(AO83:AP83)/3517)*858)*0.57,2) -> 1860.07 | AR83: 0.21 | AS83: 0.22 | AT83: 0.86
D84: Este | K84: =VLOOKUP(A83,$F$132:$G$163,2,0)+VLOOKUP(D84,$H$132:$I$135,2,0) -> 212 | L84: 1292.2 | M84: 460.89 | N84: 1 | O84: 0 | P84: 0 | Q84: 0 | R84: 1 | S84: 39.73 | T84: 0 | U84: 17.2966 | V84: 0 | W84: 0 | X84: 14 cm de remetimento en todas las ventanas de F. Principal | Y84: 9705.04 | Z84: 139 | AA84: 5 | AB84: 243.78 | AC84: 1734.73 | AD84: 535.09 | AE84: 315.63 | AF84: 2414.79455 | AG84: 1142.96 | AH84: 494.73 | AI84: 3280.05405 | AJ84: 1257.44 | AK84: 630.97 | AL84: 8559.9535 | AM84: 4194.69 | AN84: 1773.61 | AO84: 10605.68369 | AP84: 5208.62 | AQ84: 2199.07 | AR84: 0.29 | AS84: 0.56 | AT84: 1.74
D85: Sur | K85: =VLOOKUP(A83,$F$132:$G$163,2,0)+VLOOKUP(D85,$H$132:$I$135,2,0) -> 213 | L85: 1463.87 | M85: 472.36 | N85: 1.5 | O85: 0 | P85: 0 | Q85: 0 | R85: 0 | S85: 39.73 | T85: 0 | U85: 0 | V85: 0 | W85: 0 | X85: 14 cm de remetimento en todas las ventanas de F. Principal | Y85: 8430.31 | Z85: 121 | AA85: 4 | AB85: 269.24 | AC85: 1797.68 | AD85: 550.63 | AE85: 326.55 | AF85: 2929.36056 | AG85: 826.69 | AH85: 522.3 | AI85: 3360.93674 | AJ85: 949.78 | AK85: 599.43 | AL85: 9486.3685 | AM85: 2763.65 | AN85: 1703.44 | AO85: 10354.20743 | AP85: 3457.69 | AQ85: 1920.63 | AR85: 0.23 | AS85: 0.32 | AT85: 0.89
D86: Oeste | K86: =VLOOKUP(A83,$F$132:$G$163,2,0)+VLOOKUP(D86,$H$132:$I$135,2,0) -> 214 | L86: 1339.2 | M86: 537.61 | N86: 1 | O86: 0 | P86: 1 | Q86: 0 | R86: 0 | S86: 39.73 | T86: 0 | U86: 0 | V86: 0 | W86: 18.5635 | X86: 14 cm de remetimento en todas las ventanas de F. Principal | Y86: 9705.04 | Z86: 139 | AA86: 5 | AB86: 260.98 | AC86: 1764.81 | AD86: 614.15 | AE86: 330.81 | AF86: 2355.50399 | AG86: 1155.82 | AH86: 488.27 | AI86: 3294.47706 | AJ86: 1273.9 | AK86: 635.26 | AL86: 8149.29129 | AM86: 4224.31 | AN86: 1720.62 | AO86: 10645.35605 | AP86: 5242.37 | AQ86: 2209.28 | AR86: 0.29 | AS86: 0.6 | AT86: 2
A87: Piedras Negras | B87: Coahuila | C87: 1E | D87: Norte | E87: Aislada | F87: 1 | G87: 0.714 | H87: Block 15cm | I87: Vigueta y Bovedilla | K87: =VLOOKUP(A87,$F$132:$G$163,2,0)+VLOOKUP(D87,$H$132:$I$135,2,0) -> 221 | L87: 1441.01 | M87: 401.22 | N87: 0 | O87: 0 | P87: 1 | Q87: 0 | R87: 1 | S87: 0 | T87: 0 | U87: 17.2966 | V87: 0 | W87: 18.5635 | X87: No Aplica | Y87: 6969.71 | Z87: 100 | AA87: 3 | AB87: 256.17 | AC87: 1937.19 | AD87: 401.22 | AE87: 325.17 | AF87: 3158.949945 | AG87: 681.13 | AH87: 533.99 | AI87: 3496.563944 | AJ87: 741.86 | AK87: 589.38 | AL87: 9869.825507 | AM87: 2410.18 | AN87: 1707.61 | AO87: 10774.98823 | AP87: 3045.87 | AQ87: 1921.87 | AR87: 0.28 | AS87: 0.23 | AT87: 0.88
D88: Este | K88: =VLOOKUP(A87,$F$132:$G$163,2,0)+VLOOKUP(D88,$H$132:$I$135,2,0) -> 222 | L88: 1380.58 | M88: 452.25 | N88: 1.5 | O88: 0 | P88: 1 | Q88: 0 | R88: 0 | S88: 39.73 | T88: 0 | U88: 17.2966 | V88: 0 | W88: 0 | X88: 15cm de remetimento en todas las ventanas de F. Principal | Y88: 10578.71 | Z88: 151 | AA88: 5 | AB88: 254.87 | AC88: 1900.35 | AD88: 535.09 | AE88: 338.66 | AF88: 2518.684555 | AG88: 1142.96 | AH88: 509.17 | AI88: 3421.169505 | AJ88: 1257.44 | AK88: 650.59 | AL88: 8928.22235 | AM88: 4194.69 | AN88: 1824.82 | AO88: 11061.96455 | AP88: 5208.62 | AQ88: 2262.52 | AR88: 0.34 | AS88: 0.58 | AT88: 1.79
D89: Sur | K89: =VLOOKUP(A87,$F$132:$G$163,2,0)+VLOOKUP(D89,$H$132:$I$135,2,0) -> 223 | L89: 1445.86 | M89: 550.63 | N89: 0 | O89: 0 | P89: 1 | Q89: 0 | R89: 1 | S89: 0 | T89: 0 | U89: 17.2966 | V89: 0 | W89: 18.5635 | X89: No Aplica | Y89: 6969.71 | Z89: 100 | AA89: 3 | AB89: 277.62 | AC89: 1938.17 | AD89: 550.63 | AE89: 346.08 | AF89: 3055.388376 | AG89: 826.69 | AH89: 539.83 | AI89: 3505.531954 | AJ89: 949.78 | AK89: 619.54 | AL89: 9894.49385 | AM89: 2763.65 | AN89: 1760.19 | AO89: 10799.6692 | AP89: 3457.69 | AQ89: 1982.57 | AR89: 0.28 | AS89: 0.33 | AT89: 0.91
D90: Oeste | K90: =VLOOKUP(A87,$F$132:$G$163,2,0)+VLOOKUP(D90,$H$132:$I$135,2,0) -> 224 | L90: 1430.86 | M90: 528.7 | N90: 1.5 | O90: 0 | P90: 0 | Q90: 0 | R90: 1 | S90: 39.73 | T90: 0 | U90: 0 | V90: 0 | W90: 18.5635 | X90: 15cm de remetimento en todas las ventanas de F. Principal | Y90: 10578.71 | Z90: 151 | AA90: 5 | AB90: 272.49 | AC90: 1916.78 | AD90: 614.15 | AE90: 351.94 | AF90: 2456.843179 | AG90: 1155.82 | AH90: 502.36 | AI90: 3436.213026 | AJ90: 1273.9 | AK90: 654.97 | AL90: 8499.892509 | AM90: 4224.31 | AN90: 1769.38 | AO90: 11103.3437 | AP90: 5242.37 | AQ90: 2272.97 | AR90: 0.33 | AS90: 0.63 | AT90: 2.06
A91: Guaymas | B91: Sonora | C91: 1E | D91: Norte | E91: Aislada | F91: 1 | G91: 0.714 | H91: Block 15cm | I91: Vigueta y Bovedilla | K91: =VLOOKUP(A91,$F$132:$G$163,2,0)+VLOOKUP(D91,$H$132:$I$135,2,0) -> 231 | L91: 1601.25 | M91: 434.68 | N91: 1 | O91: 0 | P91: 1 | Q91: 0 | R91: 0 | S91: 38.65 | T91: 0 | U91: 18.1298 | V91: 0 | W91: 0 | X91: No Aplica | Y91: 10874.94 | Z91: 156 | AA91: 5 | AB91: 283.11 | AC91: 2405.75 | AD91: 434.68 | AE91: 394.98 | AF91: 3409.79523 | AG91: 681.13 | AH91: 568.87 | AI91: 3774.218416 | AJ91: 741.86 | AK91: 627.99 | AL91: 10653.5667 | AM91: 2410.18 | AN91: =ROUND(((SUM(AL91:AM91)/3517)*858)*0.57,2) -> 1816.59 | AO91: 11630.60641 | AP91: 3045.87 | AQ91: =ROUND(((SUM(AO91:AP91)/3517)*858)*0.57,2) -> 2040.85 | AR91: 0.46 | AS91: 0.24 | AT91: 0.92
D92: Este | K92: =VLOOKUP(A91,$F$132:$G$163,2,0)+VLOOKUP(D92,$H$132:$I$135,2,0) -> 232 | L92: 1275.69 | M92: 753.83 | N92: 2 | O92: 0 | P92: 2 | Q92: 0 | R92: 2 | S92: 38.65 | T92: 0 | U92: 12.282 | V92: 0 | W92: 10.0452 | X92: No Aplica | Y92: 14674.77 | Z92: 210 | AA92: 7 | AB92: 282.22 | AC92: 2322.63 | AD92: 753.83 | AE92: 427.8 | AF92: 2718.68777 | AG92: 1142.96 | AH92: 536.99 | AI92: 3692.83707 | AJ92: 1257.44 | AK92: 688.37 | AL92: 9637.1929 | AM92: 4194.69 | AN92: 1923.41 | AO92: 11940.37089 | AP92: 5208.62 | AQ92: 2384.67 | AR92: 0.6 | AS92: 0.62 | AT92: 1.89
D93: Sur | K93: =VLOOKUP(A91,$F$132:$G$163,2,0)+VLOOKUP(D93,$H$132:$I$135,2,0) -> 233 | L93: 1550.61 | M93: 554.23 | N93: 1 | O93: 0 | P93: 1 | Q93: 0 | R93: 0 | S93: 38.65 | T93: 0 | U93: 18.1298 | V93: 0 | W93: 0 | X93: No Aplica | Y93: 10874.94 | Z93: 156 | AA93: 5 | AB93: 292.69 | AC93: 2409.64 | AD93: 554.23 | AE93: 412.14 | AF93: 3298.010064 | AG93: 826.69 | AH93: 573.56 | AI93: 3783.898556 | AJ93: 949.78 | AK93: 658.25 | AL93: 10680.1939 | AM93: 2763.65 | AN93: 1869.45 | AO93: 11657.24724 | AP93: 3457.69 | AQ93: 2101.82 | AR93: 0.49 | AS93: 0.35 | AT93: 0.95
D94: Oeste | K94: =VLOOKUP(A91,$F$132:$G$163,2,0)+VLOOKUP(D94,$H$132:$I$135,2,0) -> 234 | L94: 1278.85 | M94: 775.65 | N94: 2 | O94: 0 | P94: 2 | Q94: 0 | R94: 2 | S94: 38.65 | T94: 0 | U94: 12.282 | V94: 0 | W94: 10.0452 | X94: No Aplica | Y94: 14674.77 | Z94: 210 | AA94: 7 | AB94: 285.69 | AC94: 2335.74 | AD94: 775.65 | AE94: 432.66 | AF94: 2651.935706 | AG94: 1155.82 | AH94: 529.49 | AI94: 3709.075164 | AJ94: 1273.9 | AK94: 692.91 | AL94: 9174.850326 | AM94: 4224.31 | AN94: 1863.23 | AO94: 11985.03587 | AP94: 5242.37 | AQ94: 2395.57 | AR94: 0.6 | AS94: 0.67 | AT94: 2.18
A95: Navojoa | B95: Sonora | C95: 1E | D95: Norte | E95: Aislada | F95: 1 | G95: 0.714 | H95: Block 15cm | I95: Vigueta y Bovedilla | K95: =VLOOKUP(A95,$F$132:$G$163,2,0)+VLOOKUP(D95,$H$132:$I$135,2,0) -> 241 | L95: 1346.79 | M95: 434.68 | N95: 0 | O95: 0 | P95: 1 | Q95: 0 | R95: 1 | S95: 0 | T95: 0 | U95: 18.1298 | V95: 0 | W95: 18.3738 | X95: No Aplica | Y95: 7094.84 | Z95: 101 | AA95: 4 | AB95: 247.72 | AC95: 2028.15 | AD95: 434.68 | AE95: 342.47 | AF95: 3131.939685 | AG95: 681.13 | AH95: 530.23 | AI95: 3466.666952 | AJ95: 741.86 | AK95: 585.22 | AL95: 9785.434631 | AM95: 2410.18 | AN95: 1695.87 | AO95: 10682.85786 | AP95: 3045.87 | AQ95: 1909.06 | AR95: 0.39 | AS95: 0.23 | AT95: 0.87
D96: Este | K96: =VLOOKUP(A95,$F$132:$G$163,2,0)+VLOOKUP(D96,$H$132:$I$135,2,0) -> 242 | L96: 1165.51 | M96: 704.06 | N96: 1 | O96: 0 | P96: 1.5 | Q96: 0 | R96: 1.5 | S96: 38.65 | T96: 0 | U96: 12.282 | V96: 0 | W96: 10.0452 | X96: 18 cm remetimiento en la ventana al Oeste | Y96: 12314.57 | Z96: 176 | AA96: 6 | AB96: 259.97 | AC96: 1960.64 | AD96: 753.83 | AE96: 377.46 | AF96: 2497.148815 | AG96: 1142.96 | AH96: 506.18 | AI96: 3391.917165 | AJ96: 1257.44 | AK96: 646.52 | AL96: 8851.88255 | AM96: 4194.69 | AN96: 1814.2 | AO96: 10967.38042 | AP96: 5208.62 | AQ96: 2249.37 | AR96: 0.48 | AS96: 0.58 | AT96: 1.78
D97: Sur | K97: =VLOOKUP(A95,$F$132:$G$163,2,0)+VLOOKUP(D97,$H$132:$I$135,2,0) -> 243 | L97: 1347 | M97: 554.23 | N97: 0 | O97: 0 | P97: 1 | Q97: 0 | R97: 1 | S97: 0 | T97: 0 | U97: 18.1298 | V97: 0 | W97: 18.3738 | X97: No Aplica | Y97: 7094.84 | Z97: 101 | AA97: 4 | AB97: 264.38 | AC97: 2025.79 | AD97: 554.23 | AE97: 358.77 | AF97: 3029.263608 | AG97: 826.69 | AH97: 536.19 | AI97: 3475.558282 | AJ97: 949.78 | AK97: 615.37 | AL97: 9809.89205 | AM97: 2763.65 | AN97: 1748.43 | AO97: 10707.3278 | AP97: 3457.69 | AQ97: 1969.73 | AR97: 0.39 | AS97: 0.32 | AT97: 0.91
D98: Oeste | K98: =VLOOKUP(A95,$F$132:$G$163,2,0)+VLOOKUP(D98,$H$132:$I$135,2,0) -> 244 | L98: 1168.59 | M98: 727.41 | N98: 1 | O98: 0 | P98: 1.5 | Q98: 0 | R98: 1.5 | S98: 38.65 | T98: 0 | U98: 12.282 | V98: 0 | W98: 10.0452 | X98: 18 cm remetimiento en la ventana al Este | Y98: 12314.57 | Z98: 176 | AA98: 6 | AB98: 263.65 | AC98: 1972.98 | AD98: 775.65 | AE98: 382.21 | AF98: 2435.836207 | AG98: 1155.82 | AH98: 499.44 | AI98: 3406.832058 | AJ98: 1273.9 | AK98: 650.88 | AL98: 8427.215097 | AM98: 4224.31 | AN98: 1759.27 | AO98: 11008.40576 | AP98: 5242.37 | AQ98: 2259.77 | AR98: 0.49 | AS98: 0.62 | AT98: 2.05
A99: Reynosa | B99: Tamaulipas | C99: 1E | D99: Norte | E99: Aislada | F99: 1 | G99: 0.714 | H99: Block 15cm | I99: Vigueta y Bovedilla | K99: =VLOOKUP(A99,$F$132:$G$163,2,0)+VLOOKUP(D99,$H$132:$I$135,2,0) -> 251 | L99: 1442.96 | M99: 478.9 | N99: 0 | O99: 0 | P99: 1 | Q99: 0 | R99: 1 | S99: 0 | T99: 0 | U99: 21.006 | V99: 0 | W99: 18.7687 | X99: No Aplica | Y99: 7730.61 | Z99: 111 | AA99: 4 | AB99: 267.25 | AC99: 2113.57 | AD99: 478.9 | AE99: 360.5 | AF99: 3172.955265 | AG99: 640.2622 | AH99: 530.25 | AI99: 3512.066088 | AJ99: 697.3484 | AK99: 585.34 | AL99: 9913.583739 | AM99: 2265.5692 | AN99: 1693.58 | AO99: 10822.75953 | AP99: 2863.1178 | AQ99: 1903.1 | AR99: 0.38 | AS99: 0.23 | AT99: 0.86
D100: Este | K100: =VLOOKUP(A99,$F$132:$G$163,2,0)+VLOOKUP(D100,$H$132:$I$135,2,0) -> 252 | L100: 1317.46 | M100: 601.2 | N100: 1 | O100: 0 | P100: 1 | Q100: 0 | R100: 1 | S100: 37.95 | T100: 0 | U100: 11.6768 | V100: 0 | W100: 11.8288 | X100: 1 cm de Remetimiento en la ventana al Este | Y100: 11786.64 | Z100: 169 | AA100: 6 | AB100: 266.8 | AC100: 2038.78 | AD100: 605.78 | AE100: 367.74 | AF100: 2529.851235 | AG100: 1074.3824 | AH100: 501.19 | AI100: 3436.337385 | AJ100: 1181.9936 | AK100: 642.21 | AL100: 8967.80595 | AM100: 3943.0086 | AN100: 1795.33 | AO100: 11111.00817 | AP100: 4896.1028 | AQ100: 2225.89 | AR100: 0.41 | AS100: 0.58 | AT100: 1.76
D101: Sur | K101: =VLOOKUP(A99,$F$132:$G$163,2,0)+VLOOKUP(D101,$H$132:$I$135,2,0) -> 253 | L101: 1443.05 | M101: 470.85 | N101: 0 | O101: 0 | P101: 1 | Q101: 0 | R101: 1 | S101: 0 | T101: 0 | U101: 21.006 | V101: 0 | W101: 18.7687 | X101: No Aplica | Y101: 7730.61 | Z101: 111 | AA101: 4 | AB101: 266.14 | AC101: 2117.5 | AD101: 470.85 | AE101: 359.93 | AF101: 3068.934552 | AG101: 777.0886 | AH101: 534.81 | AI101: 3521.073858 | AJ101: 892.7932 | AK101: 613.77 | AL101: 9938.36145 | AM101: 2597.831 | AN101: 1743.23 | AO101: 10847.54993 | AP101: 3250.2286 | AQ101: 1960.38 | AR101: 0.38 | AS101: 0.32 | AT101: 0.89
D102: Oeste | K102: =VLOOKUP(A99,$F$132:$G$163,2,0)+VLOOKUP(D102,$H$132:$I$135,2,0) -> 254 | L102: 1318.49 | M102: 603.34 | N102: 1 | O102: 0 | P102: 1 | Q102: 0 | R102: 1 | S102: 37.95 | T102: 0 | U102: 11.6768 | V102: 0 | W102: 11.8288 | X102: 1 cm de Remetimiento en la ventana al Este | Y102: 11786.64 | Z102: 169 | AA102: 6 | AB102: 267.24 | AC102: 2039.92 | AD102: 608.13 | AE102: 368.23 | AF102: 2467.735683 | AG102: 1086.4708 | AH102: 494.23 | AI102: 3451.447602 | AJ102: 1197.466 | AK102: 646.46 | AL102: 8537.577093 | AM102: 3970.8514 | AN102: 1739.37 | AO102: 11152.57078 | AP102: 4927.8278 | AQ102: 2236.08 | AR102: 0.41 | AS102: 0.62 | AT102: 2.04
A103: Nuevo Laredo | B103: Tamaulipas | C103: 1E | D103: Norte | E103: Aislada | F103: 1 | G103: 0.714 | H103: Block 15cm | I103: Vigueta y Bovedilla | K103: =VLOOKUP(A103,$F$132:$G$163,2,0)+VLOOKUP(D103,$H$132:$I$135,2,0) -> 261 | L103: 1502.55 | M103: 478.9 | N103: 0 | O103: 0 | P103: 1 | Q103: 0 | R103: 1 | S103: 0 | T103: 0 | U103: 21.006 | V103: 0 | W103: 18.7687 | X103: No Aplica | Y103: 7730.61 | Z103: 111 | AA103: 4 | AB103: 275.53 | AC103: 2207.06 | AD103: 478.9 | AE103: 373.5 | AF103: 3295.75191 | AG103: 640.2622 | AH103: 547.33 | AI103: 3647.986672 | AJ103: 697.3484 | AK103: 604.24 | AL103: 10297.24967 | AM103: 2265.5692 | AN103: 1746.94 | AO103: 11241.6115 | AP103: 2863.1178 | AQ103: 1961.35 | AR103: 0.4 | AS103: 0.23 | AT103: 0.88
D104: Este | K104: =VLOOKUP(A103,$F$132:$G$163,2,0)+VLOOKUP(D104,$H$132:$I$135,2,0) -> 262 | L104: 1389.37 | M104: 568.77 | N104: 1 | O104: 0 | P104: 1 | Q104: 0 | R104: 1 | S104: 37.95 | T104: 0 | U104: 11.6768 | V104: 0 | W104: 11.8288 | X104: 8 cm de Remetimiento en la ventana al Oeste | Y104: 11786.64 | Z104: =ROUND(Y104*0.0143,0) -> 169 | AA104: =ROUND(Y104*0.0005,0) -> 6 | AB104: =ROUND(((SUM(L104:M104)/3517)*858)*0.57,2) -> 272.29 | AC104: 2133.99 | AD104: 605.78 | AE104: 380.98 | AF104: 2627.75909 | AG104: 1074.3824 | AH104: 514.81 | AI104: 3569.32719 | AJ104: 1181.9936 | AK104: 660.7 | AL104: 9314.8693 | AM104: 3943.0086 | AN104: 1843.59 | AO104: 11541.01566 | AP104: 4896.1028 | AQ104: 2285.68 | AR104: 0.45 | AS104: 0.6 | AT104: 1.81
D105: Sur | K105: =VLOOKUP(A103,$F$132:$G$163,2,0)+VLOOKUP(D105,$H$132:$I$135,2,0) -> 263 | L105: 1505.53 | M105: 470.85 | N105: 0 | O105: 0 | P105: 1 | Q105: 0 | R105: 1 | S105: 0 | T105: 0 | U105: 21.006 | V105: 0 | W105: 18.7687 | X105: No Aplica | Y105: 7730.61 | Z105: 111 | AA105: 4 | AB105: 274.83 | AC105: 2217.71 | AD105: 470.85 | AE105: 373.86 | AF105: 3187.705488 | AG105: 777.0886 | AH105: 551.33 | AI105: 3657.343052 | AJ105: 892.7932 | AK105: 632.72 | AL105: 10322.9863 | AM105: 2597.831 | AN105: 1796.72 | AO105: 11267.36131 | AP105: 3250.2286 | AQ105: 2018.76 | AR105: 0.41 | AS105: 0.33 | AT105: 0.91
D106: Oeste | K106: =VLOOKUP(A103,$F$132:$G$163,2,0)+VLOOKUP(D106,$H$132:$I$135,2,0) -> 264 | L106: 1392.09 | M106: 569.47 | N106: 1 | O106: 0 | P106: 1 | Q106: 0 | R106: 1 | S106: 37.95 | T106: 0 | U106: 11.6768 | V106: 0 | W106: 11.8288 | X106: 8 cm de Remetimiento en la ventana al Este | Y106: 11786.64 | Z106: 169 | AA106: 6 | AB106: 272.77 | AC106: 2136.94 | AD106: 608.13 | AE106: 381.72 | AF106: 2563.239602 | AG106: 1086.4708 | AH106: 507.51 | AI106: 3585.022188 | AJ106: 1197.466 | AK106: 665.03 | AL106: 8867.990142 | AM106: 3970.8514 | AN106: 1785.32 | AO106: 11584.18679 | AP106: 4927.8278 | AQ106: 2296.09 | AR106: 0.45 | AS106: 0.65 | AT106: 2.09
A107: Mexicali | B107: Baja California | C107: 1F | D107: Norte | E107: Aislada | F107: 1 | G107: 0.625 | H107: Block 15cm | I107: Vigueta y Bovedilla | K107: =VLOOKUP(A107,$F$132:$G$163,2,0)+VLOOKUP(D107,$H$132:$I$135,2,0) -> 271 | L107: 1911.9 | M107: 306.71 | N107: 2 | O107: 0 | P107: 2 | Q107: 0 | R107: 0 | S107: 39.73 | T107: 0 | U107: 17.2966 | V107: 0 | W107: 0 | X107: 19 cm de remetimiento en ventanas al Norte y Sur; 22 cm de remetimiento en ventana al Oeste | Y107: 13660.69 | Z107: 195 | AA107: 7 | AB107: 308.51 | AC107: 3475.75 | AD107: 401.22 | AE107: 539.12 | AF107: 3425.80131 | AG107: 681.13 | AH107: 571.09 | AI107: 3791.935152 | AJ107: 741.86 | AK107: 630.45 | AL107: 10703.57611 | AM107: 2410.18 | AN107: 1823.55 | AO107: 11685.20218 | AP107: 3045.87 | AQ107: 2048.44 | AR107: 0.95 | AS107: 0.24 | AT107: 0.92
D108: Este | K108: =VLOOKUP(A107,$F$132:$G$163,2,0)+VLOOKUP(D108,$H$132:$I$135,2,0) -> 272 | L108: 1723.76 | M108: 423.53 | N108: 1 | O108: 0 | P108: 2 | Q108: 0 | R108: 2 | S108: 39.73 | T108: 0 | U108: 13.7056 | V108: 0 | W108: 11.0537 | X108: 22 cm de remetimiento en ventanas al Este, 18 cm de remetimiento en ventana al Oeste y 14 cm de remetimiento en ventana al Norte. | Y108: 13792.52 | Z108: 197 | AA108: 7 | AB108: 298.59 | AC108: 3389.34 | AD108: 535.09 | AE108: 545.72 | AF108: 2731.44969 | AG108: 1142.96 | AH108: 538.76 | AI108: 3710.17179 | AJ108: 1257.44 | AK108: 690.78 | AL108: 9682.4313 | AM108: 4194.69 | AN108: 1929.7 | AO108: 11996.42074 | AP108: 5208.62 | AQ108: 2392.46 | AR108: 1.01 | AS108: 0.62 | AT108: 1.9
D109: Sur | K109: =VLOOKUP(A107,$F$132:$G$163,2,0)+VLOOKUP(D109,$H$132:$I$135,2,0) -> 273 | L109: 1861.27 | M109: 408.74 | N109: 2 | O109: 0 | P109: 2 | Q109: 0 | R109: 0 | S109: 39.73 | T109: 0 | U109: 17.2966 | V109: 0 | W109: 0 | X109: 19 cm de remetimiento en ventanas al Sur y Norte; 22 cm de remetimiento en ventana al Este | Y109: 13660.69 | Z109: 195 | AA109: 7 | AB109: 315.66 | AC109: 3484.55 | AD109: 550.63 | AE109: 561.12 | AF109: 3313.491408 | AG109: 826.69 | AH109: 575.72 | AI109: 3801.660732 | AJ109: 949.78 | AK109: 660.72 | AL109: 10730.3283 | AM109: 2763.65 | AN109: 1876.42 | AO109: 11711.96807 | AP109: 3457.69 | AQ109: 2109.43 | AR109: 1.01 | AS109: 0.35 | AT109: 0.96
D110: Oeste | K110: =VLOOKUP(A107,$F$132:$G$163,2,0)+VLOOKUP(D110,$H$132:$I$135,2,0) -> 274 | L110: 1737.08 | M110: 485.98 | N110: 1 | O110: 0 | P110: 2 | Q110: 0 | R110: 2 | S110: 39.73 | T110: 0 | U110: 13.7056 | V110: 0 | W110: 11.0537 | X110: 22 cm de remetimiento en ventanas al Oeste, 18 cm de remetimiento en ventana al Este y 14 cm de remetimiento en ventana al Sur. | Y110: 13792.52 | Z110: 197 | AA110: 7 | AB110: 309.13 | AC110: 3418.47 | AD110: 614.15 | AE110: 560.76 | AF110: 2664.384282 | AG110: 1155.82 | AH110: 531.22 | AI110: 3726.486108 | AJ110: 1273.9 | AK110: 695.33 | AL110: 9217.918422 | AM110: 4224.31 | AN110: 1869.22 | AO110: 12041.29539 | AP110: 5242.37 | AQ110: 2403.4 | AR110: 1.03 | AS110: 0.67 | AT110: 2.19
A111: Hermosillo | B111: Sonora | C111: 1F | D111: Norte | E111: Aislada | F111: 1 | G111: 0.625 | H111: Block 15cm | I111: Vigueta y Bovedilla | K111: =VLOOKUP(A111,$F$132:$G$163,2,0)+VLOOKUP(D111,$H$132:$I$135,2,0) -> 281 | L111: 1697.46 | M111: 312.95 | N111: 1 | O111: 0 | P111: 1.5 | Q111: 0 | R111: 0 | S111: 38.65 | T111: 0 | U111: 18.1298 | V111: 0 | W111: 0 | X111: 22 cm de remetimiento en ventanas al Sur y al Norte | Y111: 11381.48 | Z111: 163 | AA111: 6 | AB111: 279.56 | AC111: 2608.1 | AD111: 434.68 | AE111: 423.12 | AF111: 3219.72303 | AG111: 681.13 | AH111: 542.44 | AI111: 3563.832176 | AJ111: 741.86 | AK111: 598.73 | AL111: 10059.70498 | AM111: 2410.18 | AN111: 1734.01 | AO111: 10982.28157 | AP111: 3045.87 | AQ111: 1950.7 | AR111: 0.59 | AS111: 0.23 | AT111: 0.89
D112: Este | K112: =VLOOKUP(A111,$F$132:$G$163,2,0)+VLOOKUP(D112,$H$132:$I$135,2,0) -> 282 | L112: 1237.8 | M112: 753.83 | N112: 2 | O112: 0 | P112: 1 | Q112: 1 | R112: 1 | S112: 38.65 | T112: 0 | U112: 12.282 | V112: 18.1298 | W112: 10.0452 | X112: No Aplica | Y112: 16914.67 | Z112: 242 | AA112: 8 | AB112: 276.95 | AC112: 2523.69 | AD112: 753.83 | AE112: 455.76 | AF112: 2567.13997 | AG112: 1142.96 | AH112: 515.91 | AI112: 3486.98727 | AJ112: 1257.44 | AK112: 659.74 | AL112: 9099.9869 | AM112: 4194.69 | AN112: 1848.7 | AO112: 11274.77885 | AP112: 5208.62 | AQ112: 2292.12 | AR112: 0.73 | AS112: 0.59 | AT112: 1.82
D113: Sur | K113: =VLOOKUP(A111,$F$132:$G$163,2,0)+VLOOKUP(D113,$H$132:$I$135,2,0) -> 283 | L113: 1649.07 | M113: 410.39 | N113: 1 | O113: 0 | P113: 1.5 | Q113: 0 | R113: 0 | S113: 38.65 | T113: 0 | U113: 18.1298 | V113: 0 | W113: 0 | X113: 22 cm de remetimiento en ventanas al Sur y al Norte | Y113: 11381.48 | Z113: 163 | AA113: 6 | AB113: 286.38 | AC113: 2622.03 | AD113: 554.23 | AE113: 441.68 | AF113: 3114.169104 | AG113: 826.69 | AH113: 548 | AI113: 3572.972716 | AJ113: 949.78 | AK113: 628.92 | AL113: 10084.8479 | AM113: 2763.65 | AN113: 1786.66 | AO113: 11007.43736 | AP113: 3457.69 | AQ113: 2011.46 | AR113: 0.64 | AS113: 0.33 | AT113: 0.92
D114: Oeste | K114: =VLOOKUP(A111,$F$132:$G$163,2,0)+VLOOKUP(D114,$H$132:$I$135,2,0) -> 284 | L114: 1227.38 | M114: 775.65 | N114: 2 | O114: 0 | P114: 1 | Q114: 1 | R114: 1 | S114: 38.65 | T114: 0 | U114: 12.282 | V114: 18.1298 | W114: 10.0452 | X114: No Aplica | Y114: 16914.67 | Z114: 242 | AA114: 8 | AB114: 278.53 | AC114: 2549.43 | AD114: 775.65 | AE114: 462.37 | AF114: 2504.108866 | AG114: 1155.82 | AH114: 508.94 | AI114: 3502.320204 | AJ114: 1273.9 | AK114: 664.16 | AL114: 8663.416686 | AM114: 4224.31 | AN114: 1792.12 | AO114: 11316.95407 | AP114: 5242.37 | AQ114: 2302.67 | AR114: 0.75 | AS114: 0.64 | AT114: 2.09
A115: Ciudad Obregón | B115: Sonora | C115: 1F | D115: Norte | E115: Aislada | F115: 1 | G115: 0.625 | H115: Block 15cm | I115: Vigueta y Bovedilla | K115: =VLOOKUP(A115,$F$132:$G$163,2,0)+VLOOKUP(D115,$H$132:$I$135,2,0) -> 291 | L115: 1345.87 | M115: 408.79 | N115: 1 | O115: 0 | P115: 1 | Q115: 0 | R115: 0 | S115: 38.65 | T115: 0 | U115: 18.1298 | V115: 0 | W115: 0 | X115: 9 cm de remetimiento en ventana al Sur. | Y115: 10874.94 | Z115: 156 | AA115: 5 | AB115: 244 | AC115: 2028.15 | AD115: 434.68 | AE115: 342.47 | AF115: 2815.06932 | AG115: 681.13 | AH115: 486.17 | AI115: 3115.930944 | AJ115: 741.86 | AK115: 536.45 | AL115: 8795.404632 | AM115: 2410.18 | AN115: 1558.2 | AO115: 9602.032104 | AP115: 3045.87 | AQ115: 1758.77 | AR115: 0.4 | AS115: 0.21 | AT115: 0.82
D116: Este | K116: =VLOOKUP(A115,$F$132:$G$163,2,0)+VLOOKUP(D116,$H$132:$I$135,2,0) -> 292 | L116: 1069.04 | M116: 688.83 | N116: 2 | O116: 0 | P116: 2 | Q116: 0 | R116: 2 | S116: 38.65 | T116: 0 | U116: 12.282 | V116: 0 | W116: 10.0452 | X116: 11 cm de remetimiento en ventanas al Este. | Y116: 14674.77 | Z116: 210 | AA116: 7 | AB116: 244.44 | AC116: 1960.64 | AD116: 753.83 | AE116: 377.46 | AF116: 2244.50268 | AG116: 1142.96 | AH116: 471.05 | AI116: 3048.74388 | AJ116: 1257.44 | AK116: 598.8 | AL116: 7956.3036 | AM116: 4194.69 | AN116: 1689.67 | AO116: 9857.768424 | AP116: 5208.62 | AQ116: 2095.07 | AR116: 0.55 | AS116: 0.52 | AT116: 1.66
D117: Sur | K117: =VLOOKUP(A115,$F$132:$G$163,2,0)+VLOOKUP(D117,$H$132:$I$135,2,0) -> 293 | L117: 1289.8 | M117: 540.3 | N117: 1 | O117: 0 | P117: 1 | Q117: 0 | R117: 0 | S117: 38.65 | T117: 0 | U117: 18.1298 | V117: 0 | W117: 0 | X117: 9 cm de remetimiento en ventana al Norte. | Y117: 10874.94 | Z117: 156 | AA117: 5 | AB117: 254.49 | AC117: 2025.79 | AD117: 554.23 | AE117: 358.77 | AF117: 2722.781376 | AG117: 826.69 | AH117: 493.58 | AI117: 3123.922704 | AJ117: 949.78 | AK117: 566.47 | AL117: 8817.3876 | AM117: 2763.65 | AN117: 1610.41 | AO117: 9624.026328 | AP117: 3457.69 | AQ117: 1819.09 | AR117: 0.43 | AS117: 0.3 | AT117: 0.86
D118: Oeste | K118: =VLOOKUP(A115,$F$132:$G$163,2,0)+VLOOKUP(D118,$H$132:$I$135,2,0) -> 294 | L118: 1071.53 | M118: 708.61 | N118: 2 | O118: 0 | P118: 2 | Q118: 0 | R118: 2 | S118: 38.65 | T118: 0 | U118: 12.282 | V118: 0 | W118: 10.0452 | X118: 11 cm de remetimiento en ventanas al Oeste. | Y118: 14674.77 | Z118: 210 | AA118: 7 | AB118: 247.54 | AC118: 1972.98 | AD118: 775.65 | AE118: 382.21 | AF118: 2189.393304 | AG118: 1155.82 | AH118: 465.17 | AI118: 3062.149776 | AJ118: 1273.9 | AK118: 602.95 | AL118: 7574.601384 | AM118: 4224.31 | AN118: 1640.71 | AO118: 9894.64308 | AP118: 5242.37 | AQ118: 2104.89 | AR118: 0.55 | AS118: 0.56 | AT118: 1.9
A119: Culiacán | B119: Sinaloa | C119: 1F | D119: Norte | E119: Aislada | F119: 1 | G119: 0.625 | H119: Block 15cm | I119: Vigueta y Bovedilla | K119: =VLOOKUP(A119,$F$132:$G$163,2,0)+VLOOKUP(D119,$H$132:$I$135,2,0) -> 301 | L119: 1384.58 | M119: 347.15 | N119: 0 | O119: 0 | P119: 1 | Q119: 0 | R119: 1 | S119: 0 | T119: 0 | U119: 16.3314 | V119: 0 | W119: 16.3314 | X119: 2cm de Remetimiento en ventanas al Norte | Y119: 6348.34 | Z119: 91 | AA119: 3 | AB119: 240.81 | AC119: 2206.38 | AD119: 352.13 | AE119: 355.78 | AF119: 2877.09288 | AG119: 681.13 | AH119: 494.79 | AI119: 3184.583296 | AJ119: 741.86 | AK119: 546 | AL119: 8989.191088 | AM119: 2410.18 | AN119: 1585.15 | AO119: 9813.590736 | AP119: 3045.87 | AQ119: 1788.19 | AR119: 0.47 | AS119: 0.21 | AT119: 0.83
D120: Este | K120: =VLOOKUP(A119,$F$132:$G$163,2,0)+VLOOKUP(D120,$H$132:$I$135,2,0) -> 302 | L120: 1202.27 | M120: 556.81 | N120: 1 | O120: 0 | P120: 1 | Q120: 0 | R120: 1 | S120: 38 | T120: 0 | U120: 11.7695 | V120: 0 | W120: 11.1945 | X120: 12cm de Remetimiento en ventanas al Este | Y120: 11690.88 | Z120: 167 | AA120: 6 | AB120: 244.61 | AC120: 2149.91 | AD120: 614.36 | AE120: 384.39 | AF120: 2293.95512 | AG120: 1142.96 | AH120: 477.92 | AI120: 3115.91592 | AJ120: 1257.44 | AK120: 608.14 | AL120: 8131.6024 | AM120: 4194.69 | AN120: 1714.05 | AO120: 10074.96162 | AP120: 5208.62 | AQ120: 2125.27 | AR120: 0.57 | AS120: 0.53 | AT120: 1.69
D121: Sur | K121: =VLOOKUP(A119,$F$132:$G$163,2,0)+VLOOKUP(D121,$H$132:$I$135,2,0) -> 303 | L121: 1385.42 | M121: 391.42 | N121: 0 | O121: 0 | P121: 1 | Q121: 0 | R121: 1 | S121: 0 | T121: 0 | U121: 16.3314 | V121: 0 | W121: 16.3314 | X121: 2cm de Remetimiento en ventanas al Sur | Y121: 6348.34 | Z121: 91 | AA121: 3 | AB121: 247.08 | AC121: 2206.85 | AD121: 402.05 | AE121: 362.78 | AF121: 2782.771584 | AG121: 826.69 | AH121: 501.92 | AI121: 3192.751136 | AJ121: 949.78 | AK121: 576.04 | AL121: 9011.6584 | AM121: 2763.65 | AN121: 1637.43 | AO121: 9836.069552 | AP121: 3457.69 | AQ121: 1848.58 | AR121: 0.47 | AS121: 0.3 | AT121: 0.87
D122: Oeste | K122: =VLOOKUP(A119,$F$132:$G$163,2,0)+VLOOKUP(D122,$H$132:$I$135,2,0) -> 304 | L122: 1203.3 | M122: 557.93 | N122: 1 | O122: 0 | P122: 1 | Q122: 0 | R122: 1 | S122: 38 | T122: 0 | U122: 11.7695 | V122: 0 | W122: 11.1945 | X122: 12cm de Remetimiento en ventanas al Oeste | Y122: 11690.88 | Z122: 167 | AA122: 6 | AB122: 244.91 | AC122: 2153.44 | AD122: 617.3 | AE122: 385.29 | AF122: 2237.631536 | AG122: 1155.82 | AH122: 471.88 | AI122: 3129.617184 | AJ122: 1273.9 | AK122: 612.34 | AL122: 7741.490256 | AM122: 4224.31 | AN122: 1663.92 | AO122: 10112.64872 | AP122: 5242.37 | AQ122: 2135.21 | AR122: 0.58 | AS122: 0.58 | AT122: 1.93
A123: Guasave | B123: Sinaloa | C123: 1F | D123: Norte | E123: Aislada | F123: 1 | G123: 0.625 | H123: Block 15cm | I123: Vigueta y Bovedilla | K123: =VLOOKUP(A123,$F$132:$G$163,2,0)+VLOOKUP(D123,$H$132:$I$135,2,0) -> 311 | L123: 1479.76 | M123: 332.11 | N123: 0 | O123: 0 | P123: 1 | Q123: 0 | R123: 1 | S123: 0 | T123: 0 | U123: 16.3314 | V123: 0 | W123: 16.3314 | X123: 8 cm de Remetimiento en ventanas al Norte | Y123: 6348.34 | Z123: 91 | AA123: 3 | AB123: 251.95 | AC123: 2316.35 | AD123: 352.13 | AE123: 371.07 | AF123: 3036.1533 | AG123: 681.13 | AH123: 516.91 | AI123: 3360.64336 | AJ123: 741.86 | AK123: 570.48 | AL123: 9486.15958 | AM123: 2410.18 | AN123: 1654.26 | AO123: 10356.13626 | AP123: 3045.87 | AQ123: 1863.63 | AR123: 0.49 | AS123: 0.22 | AT123: 0.86
D124: Este | K124: =VLOOKUP(A123,$F$132:$G$163,2,0)+VLOOKUP(D124,$H$132:$I$135,2,0) -> 312 | L124: 1317.41 | M124: 512.83 | N124: 1 | O124: 0 | P124: 1 | Q124: 0 | R124: 1 | S124: 38 | T124: 0 | U124: 11.7695 | V124: 0 | W124: 11.1945 | X124: 21 cm de Remetimiento en ventanas al Este | Y124: 11690.88 | Z124: 167 | AA124: 6 | AB124: 254.51 | AC124: 2299.98 | AD124: 614.36 | AE124: 405.26 | AF124: 2420.7767 | AG124: 1142.96 | AH124: 495.56 | AI124: 3288.1797 | AJ124: 1257.44 | AK124: 632.1 | AL124: 8581.159 | AM124: 4194.69 | AN124: 1776.56 | AO124: 10631.95706 | AP124: 5208.62 | AQ124: 2202.73 | AR124: 0.62 | AS124: 0.56 | AT124: 1.75
D125: Sur | K125: =VLOOKUP(A123,$F$132:$G$163,2,0)+VLOOKUP(D125,$H$132:$I$135,2,0) -> 313 | L125: 1482.51 | M125: 359.5 | N125: 0 | O125: 0 | P125: 1 | Q125: 0 | R125: 1 | S125: 0 | T125: 0 | U125: 16.3314 | V125: 0 | W125: 16.3314 | X125: 8 cm de Remetimiento en ventanas al Sur | Y125: 6348.34 | Z125: 91 | AA125: 3 | AB125: 256.14 | AC125: 2318.73 | AD125: 402.05 | AE125: 378.34 | AF125: 2936.61744 | AG125: 826.69 | AH125: 523.31 | AI125: 3369.26276 | AJ125: 949.78 | AK125: 600.59 | AL125: 9509.869 | AM125: 2763.65 | AN125: 1706.71 | AO125: 10379.85782 | AP125: 3457.69 | AQ125: 1924.19 | AR125: 0.5 | AS125: 0.32 | AT125: 0.89
D126: Oeste | K126: =VLOOKUP(A123,$F$132:$G$163,2,0)+VLOOKUP(D126,$H$132:$I$135,2,0) -> 314 | L126: 1318.28 | M126: 512.57 | N126: 1 | O126: 0 | P126: 1 | Q126: 0 | R126: 1 | S126: 38 | T126: 0 | U126: 11.7695 | V126: 0 | W126: 11.1945 | X126: 21 cm de Remetimiento en ventanas al Oeste | Y126: 11690.88 | Z126: 167 | AA126: 6 | AB126: 254.59 | AC126: 2303.35 | AD126: 617.3 | AE126: 406.13 | AF126: 2361.33926 | AG126: 1155.82 | AH126: 489.08 | AI126: 3302.63844 | AJ126: 1273.9 | AK126: 636.4 | AL126: 8169.47946 | AM126: 4224.31 | AN126: 1723.43 | AO126: 10671.7277 | AP126: 5242.37 | AQ126: 2212.95 | AR126: 0.62 | AS126: 0.6 | AT126: 2.01
A127: Los Mochis | B127: Sinaloa | C127: 1F | D127: Norte | E127: Aislada | F127: 1 | G127: 0.625 | H127: Block 15cm | I127: Vigueta y Bovedilla | K127: =VLOOKUP(A127,$F$132:$G$163,2,0)+VLOOKUP(D127,$H$132:$I$135,2,0) -> 321 | L127: 1479.76 | M127: 332.11 | N127: 0 | O127: 0 | P127: 1 | Q127: 0 | R127: 1 | S127: 0 | T127: 0 | U127: 16.3314 | V127: 0 | W127: 16.3314 | X127: 8 cm de Remetimiento en ventanas al Norte | Y127: 6348.34 | Z127: 91 | AA127: 3 | AB127: 251.95 | AC127: 2316.35 | AD127: 352.13 | AE127: 371.07 | AF127: 3036.1533 | AG127: 681.13 | AH127: 516.91 | AI127: 3360.64336 | AJ127: 741.86 | AK127: 570.48 | AL127: 9486.15958 | AM127: 2410.18 | AN127: 1654.26 | AO127: 10356.13626 | AP127: 3045.87 | AQ127: 1863.63 | AR127: 0.49 | AS127: 0.22 | AT127: 0.86
D128: Este | K128: =VLOOKUP(A127,$F$132:$G$163,2,0)+VLOOKUP(D128,$H$132:$I$135,2,0) -> 322 | L128: 1317.41 | M128: 512.83 | N128: 1 | O128: 0 | P128: 1 | Q128: 0 | R128: 1 | S128: 38 | T128: 0 | U128: 11.7695 | V128: 0 | W128: 11.1945 | X128: 21 cm de Remetimiento en ventanas al Este | Y128: 11690.88 | Z128: 167 | AA128: 6 | AB128: 254.51 | AC128: 2299.98 | AD128: 614.36 | AE128: 405.26 | AF128: 2420.7767 | AG128: 1142.96 | AH128: 495.56 | AI128: 3288.1797 | AJ128: 1257.44 | AK128: 632.1 | AL128: 8581.159 | AM128: 4194.69 | AN128: 1776.56 | AO128: 10631.95706 | AP128: 5208.62 | AQ128: 2202.73 | AR128: 0.62 | AS128: 0.56 | AT128: 1.75
D129: Sur | K129: =VLOOKUP(A127,$F$132:$G$163,2,0)+VLOOKUP(D129,$H$132:$I$135,2,0) -> 323 | L129: 1482.51 | M129: 359.5 | N129: 0 | O129: 0 | P129: 1 | Q129: 0 | R129: 1 | S129: 0 | T129: 0 | U129: 16.3314 | V129: 0 | W129: 16.3314 | X129: 8 cm de Remetimiento en ventanas al Sur | Y129: 6348.34 | Z129: 91 | AA129: 3 | AB129: 256.14 | AC129: 2318.73 | AD129: 402.05 | AE129: 378.34 | AF129: 2936.61744 | AG129: 826.69 | AH129: 523.31 | AI129: 3369.26276 | AJ129: 949.78 | AK129: 600.59 | AL129: 9509.869 | AM129: 2763.65 | AN129: 1706.71 | AO129: 10379.85782 | AP129: 3457.69 | AQ129: 1924.19 | AR129: 0.5 | AS129: 0.32 | AT129: 0.89
D130: Oeste | K130: =VLOOKUP(A127,$F$132:$G$163,2,0)+VLOOKUP(D130,$H$132:$I$135,2,0) -> 324 | L130: 1318.28 | M130: 512.57 | N130: 1 | O130: 0 | P130: 1 | Q130: 0 | R130: 1 | S130: 38 | T130: 0 | U130: 11.7695 | V130: 0 | W130: 11.1945 | X130: 21 cm de Remetimiento en ventanas al Oeste | Y130: 11690.88 | Z130: 167 | AA130: 6 | AB130: 254.59 | AC130: 2303.35 | AD130: 617.3 | AE130: 406.13 | AF130: 2361.33926 | AG130: 1155.82 | AH130: 489.08 | AI130: 3302.63844 | AJ130: 1273.9 | AK130: 636.4 | AL130: 8169.47946 | AM130: 4224.31 | AN130: 1723.43 | AO130: 10671.7277 | AP130: 5242.37 | AQ130: 2212.95 | AR130: 0.62 | AS130: 0.6 | AT130: 2.01
K131: 1 | L131: 2 | M131: 3 | N131: 4 | O131: 5 | P131: 6 | Q131: 7 | R131: 8 | S131: 9 | T131: 10 | U131: 11 | V131: 12 | W131: 13 | X131: 14 | Y131: 15 | Z131: 16 | AA131: 17 | AB131: 18 | AC131: 19 | AD131: 20 | AE131: 21 | AF131: 22 | AG131: 23 | AH131: 24 | AI131: 25 | AJ131: 26 | AK131: 27 | AL131: 28 | AM131: 29 | AN131: 30 | AO131: 31 | AP131: 32 | AQ131: 33 | AR131: 34 | AS131: 35 | AT131: 36
A132: Arriaga | B132: Chiapas | C132: 1C | D132: 0.714 | F132: Cabo San Lucas | G132: 10 | H132: Norte | I132: 1
A133: Cabo San Lucas | B133: Baja California Sur | C133: 1C | D133: 0.714 | F133: Campeche | G133: 20 | H133: Este | I133: 2
A134: Campeche | B134: Campeche | C134: 1C | D134: 0.714 | F134: Ciudad del Carmen | G134: 30 | H134: Sur | I134: 3
A135: Cancun | B135: Quintana Roo | C135: 1C | D135: 0.714 | F135: Arriaga | G135: 40 | H135: Oeste | I135: 4
A136: Ciudad del Carmen | B136: Campeche | C136: 1C | D136: 0.714 | F136: Ciudad Juarez | G136: 50
A137: Ciudad Juarez | B137: Chihuahua | C137: 1C | D137: 0.833 | F137: Torreon | G137: 60
A138: Ciudad Obregón | B138: Sonora | C138: 1F | D138: 0.625 | F138: Lerdo | G138: 70
A139: Ciudad Valles | B139: San Luis Potosi | C139: 1D | D139: 0.714 | F139: Monterrey | G139: 80
A140: Ciudad Victoria | B140: Tamaulipas | C140: 1C | D140: 0.714 | F140: Salina Cruz | G140: 90
A141: Coatzacoalcos | B141: Veracruz | C141: 1C | D141: 0.714 | F141: Cancun | G141: 100
A142: Comalcalco | B142: Tabasco | C142: 1C | D142: 0.714 | F142: Comalcalco | G142: 110
A143: Culiacán | B143: Sinaloa | C143: 1F | D143: 0.625 | F143: Ciudad Victoria | G143: 120
A144: Guasave | B144: Sinaloa | C144: 1F | D144: 0.625 | F144: Tampico | G144: 130
A145: Guaymas | B145: Sonora | C145: 1E | D145: 0.714 | F145: Coatzacoalcos | G145: 140
A146: Hermosillo | B146: Sonora | C146: 1F | D146: 0.625 | F146: Veracruz | G146: 150
A147: La Paz | B147: Baja California Sur | C147: 1E | D147: 0.714 | F147: Monclova | G147: 160
A148: Lerdo | B148: Durango | C148: 1C | D148: 0.714 | F148: Ciudad Valles | G148: 170
A149: Los Mochis | B149: Sinaloa | C149: 1F | D149: 0.625 | F149: Mazatlán | G149: 180
A150: Matamoros | B150: Tamaulipas | C150: 1D | D150: 0.714 | F150: Villahermosa | G150: 190
A151: Mazatlán | B151: Sinaloa | C151: 1D | D151: 0.714 | F151: Matamoros | G151: 200
A152: Mexicali | B152: Baja California | C152: 1F | D152: 0.625 | F152: La Paz | G152: 210
A153: Monclova | B153: Coahuila | C153: 1D | D153: 0.714 | F153: Piedras Negras | G153: 220
A154: Monterrey | B154: Nuevo León | C154: 1C | D154: 0.714 | F154: Guaymas | G154: 230
A155: Navojoa | B155: Sonora | C155: 1E | D155: 0.714 | F155: Navojoa | G155: 240
A156: Nuevo Laredo | B156: Tamaulipas | C156: 1E | D156: 0.714 | F156: Reynosa | G156: 250
A157: Piedras Negras | B157: Coahuila | C157: 1E | D157: 0.714 | F157: Nuevo Laredo | G157: 260
A158: Reynosa | B158: Tamaulipas | C158: 1E | D158: 0.714 | F158: Mexicali | G158: 270
A159: Salina Cruz | B159: Oaxaca | C159: 1C | D159: 0.714 | F159: Hermosillo | G159: 280
A160: Tampico | B160: Tamaulipas | C160: 1C | D160: 0.714 | F160: Ciudad Obregón | G160: 290
A161: Torreon | B161: Coahuila | C161: 1C | D161: 0.714 | F161: Culiacán | G161: 300
A162: Veracruz | B162: Veracruz | C162: 1C | D162: 0.714 | F162: Guasave | G162: 310
A163: Villahermosa | B163: Tabasco | C163: 1D | D163: 0.714 | F163: Los Mochis | G163: 320
A167: 1C | B167: 1D | C167: 1E | D167: 1F | E167: 1 | F167: =Principal!B4 -> 1C | G167: =Principal!E4 -> Cabo San Lucas
A168: Arriaga | B168: Ciudad Valles | C168: Guaymas | D168: Ciudad Obregón | E168: 2 | F168: =HLOOKUP($F$167,$A$167:$D$182,E168,0) -> Arriaga | G168: =IF($G$167=F168,1,0) -> 0
A169: Cabo San Lucas | B169: Matamoros | C169: La Paz | D169: Culiacán | E169: 3 | F169: Cabo San Lucas | G169: 1
A170: Campeche | B170: Mazatlán | C170: Navojoa | D170: Guasave | E170: 4 | F170: Campeche | G170: 0
A171: Cancun | B171: Monclova | C171: Nuevo Laredo | D171: Hermosillo | E171: 5 | F171: Cancun | G171: 0
A172: Ciudad del Carmen | B172: Villahermosa | C172: Piedras Negras | D172: Los Mochis | E172: 6 | F172: Ciudad del Carmen | G172: 0
A173: Ciudad Juarez | C173: Reynosa | D173: Mexicali | E173: 7 | F173: Ciudad Juarez | G173: 0
A174: Ciudad Victoria | E174: 8 | F174: Ciudad Victoria | G174: 0
A175: Coatzacoalcos | E175: 9 | F175: Coatzacoalcos | G175: 0
A176: Comalcalco | E176: 10 | F176: Comalcalco | G176: 0
A177: Lerdo | E177: 11 | F177: Lerdo | G177: 0
A178: Monterrey | E178: 12 | F178: Monterrey | G178: 0
A179: Salina Cruz | E179: 13 | F179: Salina Cruz | G179: 0
A180: Tampico | E180: 14 | F180: Tampico | G180: 0
A181: Torreon | E181: 15 | F181: Torreon | G181: 0
A182: Veracruz | E182: 16 | F182: Veracruz | G182: 0
F183: Total | G183: =IF(F167=0,0,SUM(G168:G182)) -> 1 | H183: =IF(AND(F167=0,G183=0),1,IF(AND(OR(F167=A167,F167=B167,F167=C167,F167=D167),G183=0),2,0)) -> 0
F190: Vertical Fachada Principal al:
D191: 1 | F191: Norte | G191: Este | H191: Sur | I191: Oeste
D192: 2 | E192: Cubierta | F192: 2 | G192: 1 | H192: 2 | I192: 1
D193: 3 | E193: Norte | F193: Sin Aislante | G193: Sin Aislante | H193: Sin Aislante | I193: Sin Aislante
D194: 4 | E194: Este | F194: Sin Aislante | G194: Sin Aislante | H194: Sin Aislante | I194: 1
D195: 5 | E195: Sur | F195: Sin Aislante | G195: Sin Aislante | H195: Sin Aislante | I195: Sin Aislante
D196: 6 | E196: Oeste | F196: Sin Aislante | G196: 1 | H196: Sin Aislante | I196: Sin Aislante
D197: 7 | E197: CS | F197: 11 cms de remetimiento en todas las ventanas | G197: 13 cms de remetimiento en todas las ventanas | H197: 11 cms de remetimiento en todas las ventanas | I197: 13 cms de remetimiento en todas las ventanas
F199: Adosada Fachada Principal al:
D200: 1 | F200: Norte | G200: Este | H200: Sur | I200: Oeste
D201: 2 | E201: Cubierta | F201: Sin Aislante | G201: 1 | H201: Sin Aislante | I201: 1
D202: 3 | E202: Norte | F202: Sin Aislante | G202: Sin Aislante | H202: Sin Aislante | I202: Sin Aislante
D203: 4 | E203: Este | F203: Sin Aislante | G203: Sin Aislante | H203: 1 | I203: 1
D204: 5 | E204: Sur | F204: Sin Aislante | G204: Sin Aislante | H204: Sin Aislante | I204: Sin Aislante
D205: 6 | E205: Oeste | F205: 1 | G205: 1 | H205: Sin Aislante | I205: Sin Aislante
D206: 7 | E206: CS | F206: 19 cms de remetimiento en ventanas sin elementos sombreantes | G206: 18 cms de remetimiento en ventanas sin elementos sombreantes | H206: 19 cms de remetimiento en ventanas sin elementos sombreantes | I206: 18 cms de remetimiento en ventanas sin elementos sombreantes
F208: Adosada Fachada Principal al:
D209: 1 | F209: Norte | G209: Este | H209: Sur | I209: Oeste
D210: 2 | E210: Cubierta | F210: Sin Aislante | G210: 80.91 | H210: Sin Aislante | I210: 80.91
D211: 3 | E211: Norte | F211: Sin Aislante | G211: Sin Aislante | H211: Sin Aislante | I211: Sin Aislante
... 10 more rows
